Cogmind - Beta 16.1 @@@ ROGUE MODE // 2026.03.03 @ 19:49:25 Player: the Result: Assimilated 0b10! Performance ------------- Evolutions (9) 4500 Regions Visited (24) 4800 Robots Destroyed (590) 2950 Value Destroyed (32749) 32749 Prototype IDs (382) 7640 Alien Tech Used (1) 200 Bonus (54270) 54270 TOTAL SCORE: 107109 Bonus ------- Triggered High Security 500 High Alert Combat Kills 12441 Follower Combat Kills 1399 Network Hubs Disabled 600 Met Zhirov 300 Met Warlord at Base 500 MAIN.C Attacked Warlord 500 Warlord Defense Kills 2204 Built Enhanced Grunts 300 A7 Reached Mainframe 300 Met R17 at Cetus 500 Bested VL-GR5 5000 Met R17 at Research 2000 Met Warlord at Research 2000 Invited to Help at Command 2000 Destroyed MAIN.C Guards 500 Met MAIN.C 5000 Destroyed MAIN.C Shell 5000 Destroyed MAIN.C 10000 Used 0b10 Conduit 2000 Win 3000 Friendly Fire -1774 Cogmind --------- Core Integrity 1566/1600 Matter 292/300 Energy 1291/4508 System Corruption 8% Temperature Cool (3) Movement Flying (25) Location 0b10 Command Parts ------- > --- POWER (3) -------- Graviton-Point Reactor > --- PROPULSION (6) --- Flying HC Exoskeleton > --- UTILITY (12) ----- Armored Scrap Engine Concept Thermoelectric Network Concept Antigrav Storage Unit Spectral Analyzer Experimental Targeting Computer Concept Reaction Jets Concept Impact Drone Bay (6/6) > --- WEAPON (4) ------- Hpw. Kinetic Hardcell Construct/C > --- INVENTORY (25) --- Hybrid Graviton Reactor Advanced Coolant Injector Concept Thermoelectric Network Concept NT7 Matterbank (750) Concept NT7 Matterbank (750) Mini Quantum Capacitor Mini Quantum Capacitor Concept Antimissile System Concept Matter Streamer Concept Impact Drone Bay (0/6) Transdimensional Reconstructor Enhanced Hardcell Cannon Enhanced Hardcell Cannon Peak State ------------ > --- POWER ------------ Graviton-Point Reactor > --- PROPULSION ------- Flying HC Exoskeleton > --- UTILITY ---------- Armored Scrap Engine Concept Thermoelectric Network Concept Antigrav Storage Unit Spectral Analyzer Experimental Active Sensor Suite Experimental Targeting Computer Experimental Targeting Computer Quantum Capacitor Concept Reaction Jets > --- WEAPON ----------- Enhanced Hardcell Cannon Hpw. Kinetic Hardcell Construct/C > --- INVENTORY -------- Hybrid Graviton Reactor Concept Thermoelectric Network Concept NT7 Matterbank Concept NT7 Matterbank Experimental Kinecellerator Experimental Kinecellerator Mini Quantum Capacitor Mini Quantum Capacitor Concept Antimissile System Concept Matter Streamer Concept Impact Drone Bay Concept Impact Drone Bay Transdimensional Reconstructor Vortex Driver Concept Plasma Driver Improved Potential Cannon Multinova Projection Cannon [Rating: 249] Favorites ----------- Power Constructs Engine Heavy Deuterium Engine Power Core Nuclear Core Reactor Constructs Propulsion Constructs Treads Light Treads Wheel Armored Huge Wheel Flight Unit Constructs Utility High-capacity Storage Unit Device Armored Scrap Engine Storage High-capacity Storage Unit Processor Experimental Targeting Computer Hackware Hacking Suite Protection Improved Weapon Shielding Weapon Constructs Energy Gun Heavy EM Shotgun Energy Cannon Light EM Pulse Cannon Ballistic Gun Battle Rifle Ballistic Cannon Constructs Launcher Advanced EMP Blaster Special Weapon Mining Laser Impact Weapon Makeshift Hammer Slashing Weapon Axe Build | -11 -10 -10 -8 -7 -7 -7 -5 -5 -5 -5 -5 -4 -4 -4 -4 -4 -3 -3 -3 -2 -2 -2 -1 -1 ------- Run | Yrd Mat Sub Mat Fac Sto Rec Fac Ext Cet Arc Hub Fac Was Fac Upp War Pro Res Arm Res Tes Frg Acc Com Slots Evolved 18 | . . . 4 2 . . 4 . . . . 2 . . . . . 2 . 2 . . 2 . Power 2 | . . . 1 . . . . . . . . 1 . . . . . . . . . . . . Propulsion 4 | . . . 1 1 . . 1 . . . . 1 . . . . . . . . . . . . Utility 10 | . . . 2 1 . . 1 . . . . . . . . . . 2 . 2 . . 2 . Weapon 2 | . . . . . . . 2 . . . . . . . . . . . . . . . . . Parts Attached 198 | 7 10 9 26 12 9 6 14 4 4 . 2 5 . 2 3 5 2 14 4 16 5 31 3 5 Power 15 | 1 2 . 5 3 2 . 1 . . . . 1 . . . . . . . . . . . . Engine 11 | 1 2 . 4 3 1 . . . . . . . . . . . . . . . . . . . Core 4 | . . . 1 . 1 . 1 . . . . 1 . . . . . . . . . . . . Reactor . | . . . . . . . . . . . . . . . . . . . . . . . . . Propulsion 11 | 2 . 3 3 2 1 . . . . . . . . . . . . . . . . . . . Treads 7 | 2 . 3 2 . . . . . . . . . . . . . . . . . . . . . Leg . | . . . . . . . . . . . . . . . . . . . . . . . . . Wheel 4 | . . . 1 2 1 . . . . . . . . . . . . . . . . . . . Hover . | . . . . . . . . . . . . . . . . . . . . . . . . . Flight . | . . . . . . . . . . . . . . . . . . . . . . . . . Utility 131 | 2 3 1 5 4 3 4 11 3 3 . 2 3 . 2 3 4 2 14 4 16 5 31 2 4 Device 84 | 1 1 . 2 3 1 2 9 2 . . 1 2 . 2 2 3 1 11 1 10 4 20 2 4 Storage 12 | 1 2 . 1 . . . . . . . . . . . 1 . . 1 2 1 . 3 . . Processor 18 | . . . . . . . 1 . . . 1 1 . . . 1 . 2 1 5 1 5 . . Hackware 5 | . . . 1 . 1 1 1 . . . . . . . . . . . . . . 1 . . Protection 12 | . . 1 1 1 1 1 . 1 3 . . . . . . . 1 . . . . 2 . . Artifact . | . . . . . . . . . . . . . . . . . . . . . . . . . Weapon 41 | 2 5 5 13 3 3 2 2 1 1 . . 1 . . . 1 . . . . . . 1 1 Energy Gun 14 | . . . 10 1 . . 1 1 1 . . . . . . . . . . . . . . . Energy Cannon 6 | . 4 . . 1 . . . . . . . 1 . . . . . . . . . . . . Ballistic Gun 6 | 2 . 2 . . 1 . 1 . . . . . . . . . . . . . . . . . Ballistic Cannon 6 | . . 1 . . 2 1 . . . . . . . . . 1 . . . . . . 1 . Launcher 6 | . 1 . 3 1 . . . . . . . . . . . . . . . . . . . 1 Special Weapon 1 | . . 1 . . . . . . . . . . . . . . . . . . . . . . Impact Weapon 1 | . . 1 . . . . . . . . . . . . . . . . . . . . . . Slashing Weapon 1 | . . . . . . 1 . . . . . . . . . . . . . . . . . . Piercing Weapon . | . . . . . . . . . . . . . . . . . . . . . . . . . Special Melee Weapon . | . . . . . . . . . . . . . . . . . . . . . . . . . Unidentified Prototypes 39 | . . . 5 2 1 1 1 . 2 . . 1 . . . 3 . 8 1 6 1 6 . 1 Parts Lost 31 | . 3 1 . 2 4 3 4 . . . 1 . . 1 . . . 1 1 1 1 2 . 6 Power 7 | . 1 . . 1 2 1 1 . . . . . . . . . . . . . . . . 1 Propulsion 2 | . . 1 . . 1 . . . . . . . . . . . . . . . . . . . Utility 17 | . 1 . . 1 . 1 2 . . . 1 . . 1 . . . 1 1 1 1 1 . 5 Weapon 5 | . 1 . . . 1 1 1 . . . . . . . . . . . . . . 1 . . Highest Loss Streak 5 | . 2 1 . 1 2 2 2 . . . 1 . . 1 . . . 1 1 1 1 2 . 5 To Critical Strikes . | . . . . . . . . . . . . . . . . . . . . . . . . . Average Backups 16 | 2 9 14 17 18 17 14 16 14 16 13 14 17 18 19 14 18 20 19 18 15 16 17 20 16 Power 1 | . . . . 2 4 2 . . 1 2 2 . . . . . . . . . . . 1 1 Propulsion . | . 1 2 3 1 1 1 . . . 1 1 1 . . . . . . . . . . . . Utility 9 | . 3 5 6 7 6 9 12 12 10 10 11 11 12 12 12 15 16 15 13 10 12 12 10 10 Weapon 4 | 1 4 5 6 6 6 2 3 2 3 . . 4 6 6 2 2 4 4 5 4 4 3 8 3 Tool/Special . | . . . . . . . . . . . . . . . . . . . . . . . . . Unused Backups 158 | 1 1 4 4 3 4 10 31 13 10 . . 8 1 11 6 4 . 5 5 7 6 8 6 10 Power 16 | . . . 1 1 . 3 4 1 1 . . 2 . . . . . . . 1 . 1 . 1 Propulsion 9 | . . 1 2 . . 3 . . . . . 2 . . . . . . . 1 . . . . Utility 34 | . . 1 1 1 1 . 2 3 . . . 1 . 1 . 3 . 3 1 3 3 6 . 4 Weapon 97 | 1 1 1 . 1 3 4 25 9 9 . . 3 1 10 6 1 . 2 4 2 3 1 6 4 Tool/Special 2 | . . 1 . . . . . . . . . . . . . . . . . . . . . 1 Average Slot Usage (%) 61 | . 97 99 89 76 79 50 46 44 47 47 46 42 42 41 42 41 42 46 46 47 46 46 51 49 Engine 5 | . 13 14 11 17 16 5 . . . . . . . . . . . . . . . . . . Core 1 | . . . 5 1 2 . 2 4 5 5 4 . . . 1 3 . . . . . 2 2 . Reactor 1 | . . . . . . . 1 . . . . 5 5 5 3 1 5 4 4 4 4 1 1 4 Treads 5 | . 28 27 10 . . 3 . . . . . 1 5 5 1 . . . . . . . . . Leg 1 | . . . . . . . . . . . . . . . 3 2 4 2 . 3 4 4 3 . Wheel 2 | . . . 8 14 14 2 . . . . . . . . . . . . . . . . . . Device 14 | . 13 13 17 14 20 8 15 14 17 17 16 18 15 14 14 11 10 13 15 17 15 16 23 24 Storage 6 | . 14 14 9 7 7 7 5 5 5 5 5 5 5 5 5 5 5 4 4 4 4 4 4 4 Processor 4 | . . . . . . . 4 1 . . 2 . 5 5 5 8 10 14 12 13 13 12 12 9 Hackware 2 | . . . 6 7 7 7 . . . . . . . . . . . . . . . . . . Energy Gun 1 | . . . 15 . . . 2 . . . . . . . . . . . . . . . . . Energy Cannon 3 | . 24 5 . 5 4 1 1 4 3 5 5 3 5 1 2 . 3 2 1 . 1 3 . 2 Ballistic Gun 1 | . 1 13 . . . . . . . . . . . . . . . . . . . . . . Ballistic Cannon 1 | . . 1 . . 5 3 . . 2 . . 1 . 3 2 5 1 1 2 4 2 . 3 1 Peak Build Rating 249 | 7 11 20 41 65 66 57 96 102 127 118 118 135 123 128 127 134 131 162 179 196 207 243 249 241 Average Rating 93 | 5 9 14 36 57 60 48 79 95 114 118 113 120 122 124 123 127 124 147 161 193 199 218 245 226 On Entrance 108 | . 7 11 15 39 62 56 57 95 100 118 118 113 123 121 125 122 125 120 155 179 193 202 224 240 Avg Prop Armor Cover (%) 10 | . . . 10 . . . . . . . . . . . . . . . . . . . . . Naked Turns . | . . . . . . . . . . . . . . . . . . . . . . . . . Heaviest Build 172 | 12 34 34 73 85 92 87 82 93 110 105 105 124 128 129 130 119 109 110 172 145 114 114 126 150 Greatest Support 221 | 40 40 46 66 56 56 81 111 111 111 111 111 177 177 177 138 168 192 192 154 154 154 154 221 221 Greatest Overweight (x) 2 | . . 1 2 1 1 2 1 1 1 1 1 1 . 1 1 . . . 1 . . . . . Average Overweight (x) . | . . . 1 1 1 . . . . . . . . . . . . . . . . . . . Largest Inventory Capacity 25 | 8 15 15 20 20 20 20 20 20 20 20 20 20 20 20 20 20 20 20 25 25 20 25 25 25 Average Capacity 18 | 7 12 15 19 20 20 18 19 18 20 20 20 20 20 20 18 20 20 20 20 20 20 23 25 25 Most Carried 25 | 6 15 15 20 20 20 20 20 17 20 14 16 20 19 20 18 20 20 20 23 22 20 25 25 20 Average Carried 17 | 2 9 14 19 19 18 15 16 14 17 14 15 18 18 19 14 18 20 19 19 19 19 20 22 16 Final Capacity 25 | 8 15 15 20 20 20 15 20 20 20 20 20 20 20 20 20 20 20 20 25 20 20 25 25 25 Final Carried 23 | 5 15 15 20 20 19 13 16 13 14 14 15 19 19 18 14 20 20 20 23 20 16 22 19 13 Scrap Engine Consumption 371 | . . . . . . 48 69 25 21 . 2 28 1 13 14 18 9 47 16 25 5 12 15 3 Constructs Created 6 | . . . . . . 5 1 . . . . . . . . . . . . . . . . . Constructs Modified 161 | . . . . . . 15 30 12 8 . 1 13 2 5 7 7 6 21 7 10 2 7 6 2 Class Distribution -------------------- 47% | Construct 38% | Mutant 10% | Commander-Construct Dominant Class ---------------- Mutant | -10/Materials Mutant | -10/Subcaves Mutant | -8/Materials Mutant | -7/Factory Mutant | -7/Storage Mutant | -7/Recycling Construct | -5/Factory Construct | -5/Extension Commander-Construct | -5/Cetus Commander-Construct | -5/Archives Construct | -5/Hub_04(d) Construct | -4/Factory Construct | -4/Waste Construct | -4/Factory Construct | -4/Upper Caves Commander-Construct | -4/Warlord Construct | -3/Proximity Caves Construct | -3/Research Construct | -3/Armory Construct | -2/Research Construct | -2/Testing Construct | -2/Protoforge Construct | -1/Access Construct | -1/Command Resources | -11 -10 -10 -8 -7 -7 -7 -5 -5 -5 -5 -5 -4 -4 -4 -4 -4 -3 -3 -3 -2 -2 -2 -1 -1 ----------- Run | Yrd Mat Sub Mat Fac Sto Rec Fac Ext Cet Arc Hub Fac Was Fac Upp War Pro Res Arm Res Tes Frg Acc Com Matter Collected 17037 | 306 346 481 678 305 578 755 830 456 112 . 97 89 . 403 291 780 370 906 1047 1773 1553 4736 80 65 Remotely 197 | . . . . . . 10 . . . . . . . . . . . . . . . 187 . . Salvage Created 33141 | 209 1032 508 1925 813 1062 1557 1368 986 240 . 611 1518 . 915 622 1321 719 1647 3205 3326 1484 4321 2561 1191 Parts 1410 | 23 68 26 111 41 61 49 50 58 16 . 34 46 . 26 25 52 30 63 131 85 71 221 101 22 Haulers Intercepted 43 | . 2 . 6 . 4 1 4 . . . 1 5 . 1 . . . 5 . 8 . . 6 . Recyclers Shooed 11 | . . . 1 2 3 1 1 1 . . . 1 . . . . . . . 1 . . . . Parts Field Recycled . | . . . . . . . . . . . . . . . . . . . . . . . . . Retrieved Matter . | . . . . . . . . . . . . . . . . . . . . . . . . . Parts Self-Destructed 50 | . . 18 . . . . . . . . . . . . 10 . 22 . . . . . . . Prevented 5 | . . . . . . . . . . . . . . . 5 . . . . . . . . . Parts Restored 3 | . . . . . . . . . . . . . . . . . . 1 . . . 2 . . Broken 1 | . . . . . . . . . . . . . . . . . . 1 . . . . . . Faulty 2 | . . . . . . . . . . . . . . . . . . . . . . 2 . . Kills | -11 -10 -10 -8 -7 -7 -7 -5 -5 -5 -5 -5 -4 -4 -4 -4 -4 -3 -3 -3 -2 -2 -2 -1 -1 ------- Run | Yrd Mat Sub Mat Fac Sto Rec Fac Ext Cet Arc Hub Fac Was Fac Upp War Pro Res Arm Res Tes Frg Acc Com Combat Hostiles Destroyed 427 | . 21 12 26 10 17 15 14 13 3 . 7 20 . 8 10 16 9 15 52 32 19 74 25 9 Melee 1 | . . . . . . . . . . . . 1 . . . . . . . . . . . . Guns 32 | . 2 5 18 . . 3 4 . . . . . . . . . . . . . . . . . Cannons 331 | . 12 3 . 7 17 12 7 12 2 . 4 9 . 5 5 16 9 12 43 30 18 74 25 9 AOE 35 | . 7 . 8 . . . . 1 . . 3 8 . . 2 . . . 5 . 1 . . . Classes Destroyed 31 | 2 7 1 4 1 1 2 . 1 . . . . . . . 1 . 1 1 2 1 6 . . Worker 18 | . 2 . 4 . . 2 2 . . . 1 . . . . . . 1 . 1 1 . 4 . Builder 20 | . 3 . 1 2 2 1 2 2 . . 1 2 . . . . . . . 1 . 1 2 . Tunneler 9 | 5 . . 1 . . 3 . . . . . . . . . . . . . . . . . . Hauler 43 | . 2 . 6 . 4 1 4 . . . 1 5 . 1 . . . 5 . 8 . . 6 . Recycler 18 | 1 1 . 4 1 . 4 1 . . . . . . 1 . . . . . 1 1 . 3 . Mechanic 4 | . . . 1 1 . . . . . . . . . 1 . . . . . . . . 1 . Operator 11 | . 1 . 1 1 1 . . . . . 2 . . . . . . . . . . 3 1 1 Drone 3 | . . . . . . . . . . . . . . . . . . . . . . 3 . . Watcher 37 | . 3 . 5 2 2 . 2 . . . 1 1 . . . . . . 2 6 3 4 5 1 Swarmer 63 | . 3 . 11 . 1 . 3 . . . 3 9 . 2 4 1 1 2 5 2 . . 16 . Cutter 3 | . . . . . . . . . . . . . . . . . . . . . . . 3 . Grunt 103 | . 18 2 5 4 1 3 3 5 . . 2 6 . 1 4 8 5 4 13 8 3 6 2 . Brawler 8 | . . . 1 . . . . 1 . . . . . 1 . . 1 . 1 1 1 1 . . Duelist 19 | . . . . . 1 2 . . . . . . . 1 . . . 1 12 . 1 1 . . Protector 8 | . . . . . . 1 . . . . . . . . . 1 . . 4 1 . 1 . . Researcher 1 | . . . . . . . . . . . . . . . . . . . . . . 1 . . Sentry 66 | . . . 8 5 10 2 3 4 . . 2 1 . 3 1 . . 3 9 3 . 11 . 1 Demolisher 6 | . . . . . . 1 . . . . . . . . . 1 . 1 1 2 . . . . Specialist 5 | . . . . . . . . . . . . . . . . 1 . . . . 2 2 . . Hunter 26 | . . . 1 . 1 1 . . . . . 4 . . . 4 2 . 2 3 . 6 2 . Programmer 44 | . . . . 1 3 3 5 2 . . . . . . . . . . 3 3 11 11 . 2 Heavy 2 | . . . . . . . . . . . . . . . . . . . 2 . . . . . Behemoth 9 | . . . . . . . . 1 . . . . . . 1 . . 1 . 3 . 1 2 . Cetus Guard 3 | . . . . . . . . . 3 . . . . . . . . . . . . . . . M Guard 2 | . . . . . . . . . . . . . . . . . . . . . . . . 2 Hotshot 4 | . . . . . . . . . . . . . . . . . . . . . . 4 . . Decapitator 6 | . . . . . . . . . . . . . . . . . . . . . . 6 . . Immortal 6 | . . . . . . . . . . . . . . . . . . . . . . 6 . . Combat Programmer 2 | . . . . . . . . . . . . . . . . . . . . . . . . 2 Striker 5 | . . . . . . . . . . . . . . . . . . 3 . 2 . . . . Executioner 5 | . . . . . . . . . . . . . . . . . . . . 3 . 2 . . Alpha 7 2 | . . . . . . . . . . . . . . . . . . . . . . 2 . . Fortress 1 | . . . . . . . . . . . . . . . . . . . . . 1 . . . V-Series 11 | . . . . . . . . . . . . . . . . . . . . . . 11 . . Subdweller 13 | . . 10 . . . 3 . . . . . . . . . . . . . . . . . . Tinkerer 1 | . . . . . . . . . . . . . . . . . . . . . . 1 . . Thug 1 | . . . . . . . . . . . . . . . . . . . . 1 . . . . Mutant 2 | . . . . . . . . . . . . . . . . . . . . 2 . . . . Best Kill Streak 20 | 5 6 2 6 6 3 6 4 5 2 . 6 15 . 3 4 6 4 5 17 13 5 19 20 4 Combat Bots Only 17 | . 4 2 4 4 2 4 4 5 2 . 3 13 . 3 4 6 4 4 17 10 4 14 13 4 Max Kills in Single Turn 9 | 1 2 1 3 1 1 1 1 2 1 . 4 9 . 1 2 1 1 2 4 2 1 2 2 1 Gunslinging 1 | . . . 1 . . . . . . . . . . . . . . . . . . . . . Exploded 8 | . 2 . 2 . . . . 1 . . 3 8 . . 2 . . . 4 . 1 . . . Melee 1 | . . . . . . . . . . . . 1 . . . . . . . . . . . . Uniques/NPCs Destroyed 2 | . . . . . . . . . . . . . . . . . . . . . . . . 2 MAIN.C Shell (-1/Command) MAIN.C (-1/Command) Combat | -11 -10 -10 -8 -7 -7 -7 -5 -5 -5 -5 -5 -4 -4 -4 -4 -4 -3 -3 -3 -2 -2 -2 -1 -1 -------- Run | Yrd Mat Sub Mat Fac Sto Rec Fac Ext Cet Arc Hub Fac Was Fac Upp War Pro Res Arm Res Tes Frg Acc Com Hostile Shots Fired 2044 | . 64 39 58 78 276 185 148 70 32 . 34 209 . 52 25 73 66 23 70 55 77 295 39 76 Missed 814 | . 20 16 21 38 109 65 61 30 12 . 12 82 . 18 6 31 23 10 23 16 48 121 21 31 Intercepted 2 | . . . . . . . . . . . . . . . . . . . . . . 2 . . Hits 1230 | . 44 23 37 40 167 120 87 40 20 . 22 127 . 34 19 42 43 13 47 39 29 174 18 45 Melee 23 | . . . . . 2 9 . . . . . . . 4 . . . . 1 . . 5 2 . Projectile 1207 | . 44 23 37 40 165 111 87 40 20 . 22 127 . 30 19 42 43 13 46 39 29 169 16 45 AOE 9 | . . . . . . . . . . . . . . . . 2 . . 2 . . 4 . 1 Critical Strikes 58 | . . . 4 . 1 6 2 1 4 . 3 2 . 4 . 3 3 . 2 . 1 14 2 6 Part Disruptions 2 | . . . . . . . 1 . . . . . . . . . . . . . . . . 1 Damage Taken 21779 | . 567 523 494 482 1335 1484 2074 782 486 . 898 2045 . 759 367 1059 859 327 1193 669 365 3071 253 1687 Core 2136 | . 123 83 95 64 152 263 225 63 53 . 88 153 . 194 . 23 44 20 80 50 38 291 22 12 Absorbed by Shields 4195 | . . . . . . . . 68 89 . . . . . . 66 . . 147 306 259 2126 261 873 Reduced by Siege Mode 15 | . . . . . . . . . . . . 15 . . . . . . . . . . . . Redirected to Shielding 47 | . . . . 47 . . . . . . . . . . . . . . . . . . . . Ignored by Resistances 658 | . . . . . 60 . . . . . . . . . . . . . . . . 285 57 256 Regen/Repaired (Parts) 12035 | . . . 247 . 268 218 861 424 822 . 40 1965 236 318 325 616 902 771 744 521 152 1106 1334 165 Core Remaining (%) 68 | 100 . 17 82 . . 31 . . . . 57 . . . . . 64 . 92 . . 73 . 97 Volleys Fired 1832 | 15 65 70 66 73 153 111 132 56 28 . 32 66 . 43 23 70 30 74 105 119 80 274 77 70 Largest 3 | 2 2 2 2 2 2 2 3 1 1 . 1 1 . 1 1 1 1 1 1 1 1 1 1 1 Hottest 381 | 40 112 112 100 120 120 80 192 248 128 . 174 174 . 60 60 77 77 365 199 381 119 315 90 90 Shots Fired 2042 | 30 114 106 126 76 185 139 133 55 27 . 32 66 . 42 23 70 30 74 105 119 80 265 77 68 Gun 289 | 30 30 32 122 . . 17 58 . . . . . . . . . . . . . . . . . Cannon 1714 | . 75 56 . 68 185 122 75 55 27 . 32 66 . 42 23 70 30 74 105 119 80 265 77 68 Launcher 21 | . 9 . 4 8 . . . . . . . . . . . . . . . . . . . . Special 18 | . . 18 . . . . . . . . . . . . . . . . . . . . . . Kinetic 856 | 30 30 54 1 . 68 80 41 22 . . 32 42 . 30 18 70 30 48 105 74 48 2 25 6 Thermal 731 | . . 18 . 68 117 59 68 30 26 . . 9 . 4 . . . 14 . 6 32 166 52 62 Explosive 12 | . 9 . 3 . . . . . . . . . . . . . . . . . . . . . Electromagnetic 346 | . 75 34 122 8 . . 24 3 1 . . 15 . 8 5 . . 12 . 39 . . . . Entropic 97 | . . . . . . . . . . . . . . . . . . . . . . 97 . . Robot Hit Streak 33 | 8 11 33 9 7 7 18 9 7 8 . 8 8 . 11 4 10 10 12 16 9 14 19 19 31 Robot Miss Streak 6 | 3 5 4 6 3 2 3 4 2 2 . 2 4 . 3 5 4 2 2 5 4 3 4 2 3 Penetration Max 2 | . . . . . . 1 1 . . . . 2 . 1 . . . 1 1 1 1 1 1 . Secondary Targets 6 | . 1 . 5 . . . . . . . . . . . . . . . . . . . . . Max Gunslinging Chain 1 | . 1 . 1 . . . . . . . . . . . . . . . . . . . . . Capacitor 241 | . . . . . . . . . . . . . . . . . . . . . 16 192 . 33 Shots Hit Robots 1204 | 15 66 58 97 26 76 116 81 29 19 . 15 36 . 20 9 37 22 37 65 73 35 169 48 55 Core Hits 612 | 7 45 18 72 13 32 56 61 17 5 . 20 23 . 8 5 15 8 15 33 31 20 65 23 20 Critical Kills 11 | . . 1 . 3 . . . . . . . 1 . . 1 4 . . 1 . . . . . Critical Parts Destroyed 10 | 1 . . . . . . . . . . 1 . . . . 4 1 . 3 . . . . . Critical Strikes 58 | 1 2 1 . 3 3 2 . . . . 1 1 . . 1 8 1 . 5 1 1 17 10 . Meltdown 3 | . . . . 3 . . . . . . . . . . . . . . . . . . . . Destroy 19 | 1 . 1 . . . . . . . . 1 1 . . 1 8 1 . 5 . . . . . Blast 10 | . . . . . 3 2 . . . . . . . . . . . . . 1 1 . 3 . Corrupt 2 | . 2 . . . . . . . . . . . . . . . . . . . . . . . Sunder 24 | . . . . . . . . . . . . . . . . . . . . . . 17 7 . Melee Attacks 74 | . . 21 26 1 . 18 8 . . . . . . . . . . . . . . . . . Impact 48 | . . 21 26 1 . . . . . . . . . . . . . . . . . . . . Slashing 26 | . . . . . . 18 8 . . . . . . . . . . . . . . . . . Piercing . | . . . . . . . . . . . . . . . . . . . . . . . . . Sneak Attacks 8 | . . . 2 . . 6 . . . . . . . . . . . . . . . . . . Combat Hostiles . | . . . . . . . . . . . . . . . . . . . . . . . . . Follow-up Attacks . | . . . . . . . . . . . . . . . . . . . . . . . . . Damage Inflicted 184323 | 176 2087 1034 2723 1704 3275 3857 2565 2936 1704 . 2344 5836 . 2931 1654 5736 2821 5304 17702 21860 9359 52059 20971 13685 Guns 3779 | 176 167 336 1733 . . 292 1075 . . . . . . . . . . . . . . . . . Cannons 172239 | . 1081 643 . 1508 3223 2250 1490 2497 1704 . 1364 3653 . 2732 1571 5736 2821 5266 17031 21844 9252 52059 20829 13685 Explosions 6309 | . 824 55 716 196 . . . 439 . . 980 2107 . 151 83 . . . 671 . 87 . . . Melee 1569 | . . . 254 . . 1315 . . . . . . . . . . . . . . . . . . Ramming 427 | . 15 . 20 . 52 . . . . . . 76 . 48 . . . 38 . 16 20 . 142 . Kinetic 65880 | 176 167 433 62 . 1135 1387 586 884 . . 1364 2020 . 2108 852 5736 2821 2753 17031 12403 4163 . 7776 2023 Thermal 76537 | . 223 55 449 1508 2088 1155 1151 1930 1617 . . 694 . 212 83 . . 1574 . 1089 5089 32905 13053 11662 Explosive 3586 | . 601 . 205 . . . . . . . . 2022 . . . . . . 671 . 87 . . . Electromagnetic 17170 | . 1081 546 1733 196 . . 828 122 87 . 980 1024 . 563 719 . . 939 . 8352 . . . . Impact 254 | . . . 254 . . . . . . . . . . . . . . . . . . . . . Slashing 1315 | . . . . . . 1315 . . . . . . . . . . . . . . . . . . Piercing . | . . . . . . . . . . . . . . . . . . . . . . . . . Entropic 19154 | . . . . . . . . . . . . . . . . . . . . . . 19154 . . Highest Corruption 34 | . . . . . . 6 9 9 9 9 15 . 5 7 7 1 1 . 1 1 4 34 . 8 Average Corruption 6 | . . . . . . 4 8 9 9 9 9 . 5 6 6 1 1 . 1 1 3 15 . 7 Corruption Purged 11 | . . . . . . . 5 . . . . . . . 6 . . . . . . . . . Corruption Blocked . | . . . . . . . . . . . . . . . . . . . . . . . . . Effects 274 | . . . . . . 34 56 29 12 1 7 . 1 12 11 2 5 . 2 7 16 73 . 6 Message Errors 61 | . . . . . . 10 11 10 3 . 4 . . 2 1 1 1 . 1 1 4 10 . 2 Matter Fused 64 | . . . . . . 9 16 8 1 . 1 . . 2 3 . 2 . . 3 3 14 . 2 Heat Flow Errors 35 | . . . . . . 7 8 4 2 1 1 . . 2 2 . 1 . . . 3 4 . . Energy Discharges 29 | . . . . . . 2 6 1 2 . . . . 2 1 1 . . . 2 3 9 . . Parts Rejected 6 | . . . . . . . . . . . . . . . . . . . . . 1 5 . . Parts Fused 6 | . . . . . . 1 1 1 . . . . . . . . . . . . 1 2 . . Data Loss (minor) 26 | . . . . . . 2 6 2 1 . 1 . 1 1 4 . . . 1 1 1 5 . . Data Loss (major) 10 | . . . . . . . 3 1 1 . . . . 2 . . 1 . . . . 2 . . Alerts 8 | . . . . . . 3 2 1 1 . . . . . . . . . . . . 1 . . Misdirections 12 | . . . . . . . . . . . . . . . . . . . . . . 12 . . Weapon Failures 17 | . . . . . . . 3 1 1 . . . . 1 . . . . . . . 9 . 2 Overload Shots 30 | . . . . 2 14 . . . . . . . . . . . . . . . . 14 . . Effects 3 | . . . . . 2 . . . . . . . . . . . . . . . . 1 . . Heat Surge 3 | . . . . . 2 . . . . . . . . . . . . . . . . 1 . . Overflow Damage 39638 | . 42 22 207 210 183 530 93 247 40 . 178 728 . 381 571 1026 559 453 5629 5583 2959 12304 6174 1519 Projectiles 38731 | . 8 . . 193 172 96 93 239 40 . 136 671 . 381 571 1026 559 445 5629 5583 2959 12304 6107 1519 Explosions 218 | . 34 22 38 17 . . . 8 . . 42 57 . . . . . . . . . . . . Melee 689 | . . . 169 . 11 434 . . . . . . . . . . . 8 . . . . 67 . Knockbacks 103 | . . . 1 . 3 2 . 1 . . 5 7 . 4 2 24 12 3 8 19 3 . 5 4 Impact 2 | . . . 1 . . . . . . . . . . . . . . . . . . . 1 . Kinetic 87 | . . . . . 3 2 . 1 . . 3 4 . 2 2 23 12 3 4 18 2 . 4 4 Secondary 14 | . . . . . . . . . . . 2 3 . 2 . 1 . . 4 1 1 . . . Self-Inflicted Damage 652 | . 90 36 35 91 26 . . . . . 205 22 . . . . . . 44 . 103 . . . Shots 12 | . 3 1 1 2 . . . . . . 2 1 . . . . . . 1 . 1 . . . Rammed 11 | . 4 . 1 . 2 . . . . . . 3 . 1 . . . . . . . . . . Targets Rammed 19 | . 5 . 1 . 2 . . . . . . 4 . 1 . . . 1 . 1 1 . 3 . Kicked 6 | . . . . . . . . . . . . . . . . . . 1 . 1 1 . 3 . Crushed 2 | . 1 . . . . . . . . . . 1 . . . . . . . . . . . . Highest Temperature 640 | . 243 3 218 212 482 356 262 421 195 28 369 330 64 172 212 323 153 640 342 375 246 206 173 223 Average Temperature 97 | . 80 3 68 42 112 120 78 127 97 28 145 51 32 92 94 105 51 109 105 119 55 126 52 147 Received Heat Transfer 3625 | . 228 108 189 87 360 243 84 248 54 . 90 129 . 162 36 124 224 27 176 46 8 982 . 20 Thermoelectric Energy+ 2918 | . . . . . . . . . . . . . . . . . . . . . . 2162 . 756 Effects 15 | . . . . . . 1 . 4 . . 4 . . . . 2 . 4 . . . . . . Shutdowns 2 | . . . . . . . . 1 . . . . . . . . . 1 . . . . . . Energy Bleed 2 | . . . . . . . . 1 . . . . . . . . . 1 . . . . . . Interference 7 | . . . . . . . . 1 . . 4 . . . . 2 . . . . . . . . Matter Decay 2 | . . . . . . 1 . 1 . . . . . . . . . . . . . . . . Short Circuit 1 | . . . . . . . . . . . . . . . . . . 1 . . . . . . Damage (minor) 1 | . . . . . . . . . . . . . . . . . . 1 . . . . . . Siege Activations 1 | . . . . . . . . . . . . 1 . . . . . . . . . . . . Total Turns 12 | . . . . . . . . . . . . 12 . . . . . . . . . . . . Longest Duration 12 | . . . . . . . . . . . . 12 . . . . . . . . . . . . Martial Activations . | . . . . . . . . . . . . . . . . . . . . . . . . . Shielding Activations . | . . . . . . . . . . . . . . . . . . . . . . . . . Robots Disrupted . | . . . . . . . . . . . . . . . . . . . . . . . . . Combat Hostiles . | . . . . . . . . . . . . . . . . . . . . . . . . . Robots Corrupted 36 | . . 4 1 1 1 . 3 . 1 . . 4 . 3 3 . . 4 4 7 . . . . Combat Hostiles 25 | . . 4 . 1 . . 2 . 1 . . 2 . 3 3 . . 3 4 2 . . . . Parts Fried 111 | . 3 6 9 3 . . 11 . . . 6 9 . 6 4 . . 8 3 43 . . . . Impact Corruptions 16 | . . . 5 . 1 . . . . . . 1 . . . 1 . 1 5 . . . 2 . Robots Melted 4 | . . . . 3 . . 1 . . . . . . . . . . . . . . . . . Combat Hostiles 3 | . . . . 2 . . 1 . . . . . . . . . . . . . . . . . Parts Melted 29 | . . . . 2 . 2 10 4 . . . . . . . 2 . 1 1 1 1 2 2 1 Heat Transferred 15531 | . 300 50 350 . . 2670 2442 275 . . . 50 . 100 100 . . . . 200 847 5066 1800 1281 Parts Sabotaged . | . . . . . . . . . . . . . . . . . . . . . . . . . Parts Stolen . | . . . . . . . . . . . . . . . . . . . . . . . . . Parts Stripped . | . . . . . . . . . . . . . . . . . . . . . . . . . Power Chain Reactions 14 | . 4 1 7 . . . . . . . . . . 1 1 . . . . . . . . . Alert | -11 -10 -10 -8 -7 -7 -7 -5 -5 -5 -5 -5 -4 -4 -4 -4 -4 -3 -3 -3 -2 -2 -2 -1 -1 ------- Run | Yrd Mat Sub Mat Fac Sto Rec Fac Ext Cet Arc Hub Fac Was Fac Upp War Pro Res Arm Res Tes Frg Acc Com Maximum Alert Level 5 | . 1 . 1 1 1 1 2 3 2 1 4 4 2 2 . . . 1 3 4 3 5 5 5 Low Security (%) 48 | 100 62 . 75 97 90 85 30 . . 54 21 . . . . . . 90 7 . . . . . Level 1 21 | . 37 . 24 2 9 14 65 84 . 45 14 . 6 56 . . . 9 5 . . . . . Level 2 8 | . . . . . . . 3 13 100 . 40 11 93 43 . . . . 23 21 20 13 . . Level 3 13 | . . . . . . . . 1 . . 7 62 . . . . . . 62 73 79 32 . . Level 4 2 | . . . . . . . . . . . 15 25 . . . . . . . 4 . 17 . 3 Level 5 4 | . . . . . . . . . . . . . . . . . . . . . . 36 26 96 High Security 1 | . . . . . . . . . . . . . . . . . . . . . . . 73 . Max Security . | . . . . . . . . . . . . . . . . . . . . . . . . . Peak Influence 2771 | 15 317 . 365 213 260 292 452 756 634 205 1420 1220 422 623 . . . 246 1002 1199 1045 2771 2537 1673 Initial 1662 | . . . 5 80 93 74 268 221 420 205 57 695 422 274 . . . 57 120 519 669 560 1662 1623 Average 403 | 3 177 . 136 127 110 65 227 326 546 195 551 879 410 389 . . . 80 702 829 840 1386 2078 1629 Influence Increases 19304 | 30 844 50 1034 521 863 646 1180 1073 304 . 1663 877 . 549 230 554 260 564 1566 1160 971 3029 935 401 Destroy 0b10 Robot/C 8720 | . 420 40 520 200 340 280 440 380 160 . 280 420 . 160 200 320 180 300 960 620 380 1440 500 180 Destroy 0b10 Robot/NC 965 | 30 60 . 115 35 45 140 65 20 10 . 25 40 . 15 . 10 . 30 30 90 25 60 110 10 Destroy Leader 1742 | . 100 10 152 74 152 . 126 54 . . 74 92 . 42 30 . 20 90 210 198 56 168 72 22 Allied During Kill 850 | . . . . . . 73 75 338 108 . 92 . . . . 149 . . . . . . . 15 Successful Hack 425 | . 20 . 44 16 65 12 16 13 . . 28 36 . 5 . . . 16 32 5 59 58 . . Select Force Hacks 200 | . 60 . . . . 90 . . . . 50 . . . . . . . . . . . . . Disable Machine 1695 | . 60 . 60 105 90 30 30 105 . . 330 90 . 30 . . . 45 150 45 165 255 90 15 Destroy Structure 2877 | . 49 . 98 31 126 21 68 88 26 . 484 154 . 42 . . . 68 124 112 271 868 88 159 Advance Influence 150 | . . . . . . . 150 . . . . . . . . . . . . . . . . . Partial Spotted 180 | . 15 . . . . . . 15 . . 75 . . . . . . . . . . 15 60 . Lose Combat Pursuer 1500 | . 60 . 45 60 45 . 210 60 . . 225 45 . 255 . 75 60 15 60 90 15 165 15 . Influence Decreases 17550 | 30 593 289 869 491 878 555 1011 775 540 349 408 1089 816 350 426 633 490 420 806 959 1166 1254 1169 1184 Entered New Map 7751 | . . 121 7 97 114 118 165 231 330 309 108 725 786 118 220 395 316 29 110 471 522 436 1109 914 Time Decay 7299 | 30 563 158 562 374 574 417 626 374 190 20 100 294 30 222 206 158 174 381 386 478 334 498 60 90 Lost Part 300 | . 30 10 . 20 40 20 40 . . . 10 . . 10 . . . 10 10 10 10 20 . 60 Lost Ally 550 | . . . . . . . 180 20 20 20 40 70 . . . 80 . . . . . . . 120 Purge Threat 1650 | . . . 300 . 150 . . 150 . . 150 . . . . . . . 300 . 300 300 . . Squads Dispatched 94 | . 5 . 5 3 5 . 10 1 . . 7 7 . 5 . . . 10 7 4 4 8 11 2 Investigation 16 | . 4 . 2 . . . 1 . . . 2 1 . . . . . 3 . 2 . 1 . . Extermination 23 | . . . . 1 3 . 6 . . . . 1 . 1 . . . . 3 . 3 4 . 1 Reinforcement 31 | . 1 . 3 2 2 . 3 1 . . 3 3 . 1 . . . 7 1 2 . . 2 . Assault 22 | . . . . . . . . . . . 2 2 . 2 . . . . 3 . 1 3 8 1 Garrison 2 | . . . . . . . . . . . . . . 1 . . . . . . . . 1 . Intercept . | . . . . . . . . . . . . . . . . . . . . . . . . . Searches Triggered . | . . . . . . . . . . . . . . . . . . . . . . . . . Construction Impeded 6 | . . . 1 1 . . 1 1 . . . 1 . . . . . . . 1 . . . . Haulers Reinforced 8 | . . . . . 1 . 1 . . . . 1 . . . . . 4 . 1 . . . . Active Scanning Responses . | . . . . . . . . . . . . . . . . . . . . . . . . . Cargo Convoy Interrupts . | . . . . . . . . . . . . . . . . . . . . . . . . . Stealth | -11 -10 -10 -8 -7 -7 -7 -5 -5 -5 -5 -5 -4 -4 -4 -4 -4 -3 -3 -3 -2 -2 -2 -1 -1 --------- Run | Yrd Mat Sub Mat Fac Sto Rec Fac Ext Cet Arc Hub Fac Was Fac Upp War Pro Res Arm Res Tes Frg Acc Com Distress Signals 43 | . . . . 1 4 1 2 . 2 . 3 3 . 1 . . . 3 2 7 . 3 2 9 Communications Jammed . | . . . . . . . . . . . . . . . . . . . . . . . . . Distress Signals . | . . . . . . . . . . . . . . . . . . . . . . . . . Times Spotted 717 | . 32 12 35 19 32 16 42 33 10 . 33 31 5 24 9 75 13 26 68 58 19 100 16 9 Peak Tracking Total 23 | . 4 2 4 4 5 4 11 11 5 . 23 14 5 16 4 16 5 4 9 9 3 16 5 4 Tactical Retreats 46 | . 2 . 3 1 3 . 4 3 . . 4 1 . 4 . 4 4 1 3 2 1 5 1 . Traps | -11 -10 -10 -8 -7 -7 -7 -5 -5 -5 -5 -5 -4 -4 -4 -4 -4 -3 -3 -3 -2 -2 -2 -1 -1 ------- Run | Yrd Mat Sub Mat Fac Sto Rec Fac Ext Cet Arc Hub Fac Was Fac Upp War Pro Res Arm Res Tes Frg Acc Com Traps Triggered 45 | . 3 1 3 . 1 . 4 5 . . 2 2 . 3 . . . 3 1 . 1 16 . . Indirectly 1 | . . . . . . . . . . . 1 . . . . . . . . . . . . . Trap Hack Attempts . | . . . . . . . . . . . . . . . . . . . . . . . . . Triggered . | . . . . . . . . . . . . . . . . . . . . . . . . . Disarmed . | . . . . . . . . . . . . . . . . . . . . . . . . . Reprogrammed . | . . . . . . . . . . . . . . . . . . . . . . . . . Reused . | . . . . . . . . . . . . . . . . . . . . . . . . . Traps Extracted . | . . . . . . . . . . . . . . . . . . . . . . . . . Installed 1 | . . 1 . . . . . . . . . . . . . . . . . . . . . . Triggered . | . . . . . . . . . . . . . . . . . . . . . . . . . Most Traps Carried 1 | . . 1 . . . . . . . . . . . . . . . . . . . . . . Machines | -11 -10 -10 -8 -7 -7 -7 -5 -5 -5 -5 -5 -4 -4 -4 -4 -4 -3 -3 -3 -2 -2 -2 -1 -1 ---------- Run | Yrd Mat Sub Mat Fac Sto Rec Fac Ext Cet Arc Hub Fac Was Fac Upp War Pro Res Arm Res Tes Frg Acc Com Machines Disabled 128 | . 4 1 4 7 6 2 2 8 . . 22 6 . 2 . 4 . 3 10 3 12 25 6 1 Max in Single Turn 12 | . 1 1 1 2 1 1 1 1 . . 12 4 . 1 . 1 . 1 1 1 1 2 1 1 Garrison Access 9 | . . . . . . . 1 . . . 1 2 . 1 . . . . . 3 1 . . . Network Hub 3 | . . . . . . . . . . . 3 . . . . . . . . . . . . . Energy Cycler 2 | . . . . . . . . 2 . . . . . . . . . . . . . . . . Machines Repaired . | . . . . . . . . . . . . . . . . . . . . . . . . . Machines Dismantled . | . . . . . . . . . . . . . . . . . . . . . . . . . Machines Sabotaged 1 | . . . . . . . . . . . 1 . . . . . . . . . . . . . Overloaded Fab Kills . | . . . . . . . . . . . . . . . . . . . . . . . . . Hacking | -11 -10 -10 -8 -7 -7 -7 -5 -5 -5 -5 -5 -4 -4 -4 -4 -4 -3 -3 -3 -2 -2 -2 -1 -1 --------- Run | Yrd Mat Sub Mat Fac Sto Rec Fac Ext Cet Arc Hub Fac Was Fac Upp War Pro Res Arm Res Tes Frg Acc Com Machines Accessed 140 | . 10 1 17 6 12 8 17 7 . . 7 9 . 5 . 5 . 6 7 4 8 11 . . Terminals 89 | . 7 . 11 4 8 2 9 7 . . 6 3 . 3 . . . 4 7 2 6 10 . . Fabricators 4 | . . . . 1 . . 2 . . . . 1 . . . . . . . . . . . . Repair Stations 5 | . 1 . 2 . 2 . . . . . . . . . . . . . . . . . . . Recycling Units 18 | . 2 . 2 . 1 5 5 . . . . 2 . 1 . . . . . . . . . . Scanalyzers 7 | . . . 2 1 . . . . . . . . . . . . . 2 . 1 1 . . . Garrison Access 10 | . . . . . 1 . 1 . . . 1 3 . 1 . . . . . 1 1 1 . . Total Hacks 421 | . 30 1 52 12 36 20 33 16 . . 12 42 . 16 . 11 . 15 30 12 34 49 . . Successful 181 | . 18 1 34 6 23 11 10 6 . . 4 11 . 5 . 11 . 3 8 2 8 20 . . Failed 239 | . 11 . 18 6 13 9 23 10 . . 8 31 . 11 . . . 12 22 10 26 29 . . Catastrophic 78 | . 4 . 2 . 1 1 8 2 . . 2 7 . 4 . . . 8 10 6 18 5 . . Database Lockouts 1 | . 1 . . . . . . . . . . . . . . . . . . . . . . . Manual 156 | . 18 . 24 6 22 5 10 5 1 . 6 23 . 9 . . . 5 4 4 6 8 . . Terminals 314 | . 22 . 35 9 28 4 22 16 . . 9 33 . 14 . . . 12 30 8 25 47 . . Fabricators 5 | . . . . 1 . . 3 . . . . 1 . . . . . . . . . . . . Repair Stations 13 | . 2 . 7 . 4 . . . . . . . . . . . . . . . . . . . Recycling Units 39 | . 6 . 3 . 3 14 7 . . . . 5 . 1 . . . . . . . . . . Scanalyzers 22 | . . . 7 2 . . . . . . . . . . . . . 3 . 3 7 . . . Garrison Access 14 | . . . . . 1 . 1 . . . 3 3 . 1 . . . . . 1 2 2 . . Terminal Hacks 94 | . 5 1 12 1 10 2 4 4 . . 1 5 . 2 . 11 . 1 8 1 6 20 . . Record 23 | . . . . . . . . . . . . . . . . 9 . . . . . 14 . . Part Schematic 2 | . . . 1 . 1 . . . . . . . . . . . . . . . . . . . Robot Analysis 5 | . 2 . . . . . . . . . . 1 . . . . . . 1 . . 1 . . Prototype ID Bank 1 | . 1 . . . . . . . . . . . . . . . . . . . . . . . Open Door 7 | . . . . . 2 . 1 2 . . . . . . . 2 . . . . . . . . Level Access Points 1 | . . . . . . . . . . . . 1 . . . . . . . . . . . . Branch Access Points 4 | . . . 1 . . . 1 . . . . 1 . 1 . . . . . . . . . . Terminal Index 4 | . . . 1 . 1 . . . . . . 1 . 1 . . . . . . . . . . Alert Level 9 | . . . 2 . 1 . . 1 . . . . . . . . . . 4 . . 1 . . Unreport Threat 11 | . . . 2 . 1 . . 1 . . 1 . . . . . . . 2 . 2 2 . . Locate Traps 8 | . 1 . 2 . 2 . 1 . . . . . . . . . . . . . 1 1 . . Surveillance Status 1 | . . . . . . . . . . . . . . . . . . . . . 1 . . . Patrol Status 1 | . . . . . . . . . . . . . . . . . . . . . . 1 . . Recall Reinforcements 1 | . . . 1 . . . . . . . . . . . . . . . . . . . . . Hauler Manifests 5 | . 1 . 1 . . . 1 . . . . . . . . . . . . 1 1 . . . Registered Components 3 | . . . 1 . . . . . . . . 1 . . . . . 1 . . . . . . Zone Layout 5 | . . . . 1 2 . . . . . . . . . . . . . 1 . 1 . . . Proto ID Catalog 1 | . . 1 . . . . . . . . . . . . . . . . . . . . . . Release Object 2 | . . . . . . 2 . . . . . . . . . . . . . . . . . . Fabricator Hacks 1 | . . . . 1 . . . . . . . . . . . . . . . . . . . . Network Status 1 | . . . . 1 . . . . . . . . . . . . . . . . . . . . Repair Station Hacks 11 | . 1 . 6 . 4 . . . . . . . . . . . . . . . . . . . Scan Component 6 | . 1 . 3 . 2 . . . . . . . . . . . . . . . . . . . Repair 5 | . . . 3 . 2 . . . . . . . . . . . . . . . . . . . Recycling Unit Hacks 15 | . 2 . 1 . 1 5 4 . . . . 1 . 1 . . . . . . . . . . Process 1 | . . . . . . . 1 . . . . . . . . . . . . . . . . . Retrieve Components 14 | . 2 . 1 . 1 5 3 . . . . 1 . 1 . . . . . . . . . . Scanalyzer 12 | . . . 7 2 . . . . . . . . . . . . . 2 . . 1 . . . Insert Component 6 | . . . 2 1 . . . . . . . . . . . . . 2 . . 1 . . . Analyze 3 | . . . 3 . . . . . . . . . . . . . . . . . . . . . Retrieve Study 3 | . . . 2 1 . . . . . . . . . . . . . . . . . . . . Garrison Access Hacks 5 | . . . . . . . 1 . . . . 2 . . . . . . . 1 1 . . . Seal Access 5 | . . . . . . . 1 . . . . 2 . . . . . . . 1 1 . . . Unauthorized Hacks 42 | . 10 . 8 2 8 4 1 2 . . 3 3 . 1 . . . . . . . . . . Terminals 35 | . 8 . 8 2 8 1 . 2 . . 3 2 . 1 . . . . . . . . . . Track 1 | . 1 . . . . . . . . . . . . . . . . . . . . . . . Assimilate 2 | . . . . . . . . . . . 1 1 . . . . . . . . . . . . Botnet 15 | . 4 . 2 1 3 1 . 1 . . 1 1 . 1 . . . . . . . . . . Operators 4 | . 1 . 1 . 1 . . 1 . . . . . . . . . . . . . . . . Skim 12 | . 2 . 5 1 4 . . . . . . . . . . . . . . . . . . . Sabotage 1 | . . . . . . . . . . . 1 . . . . . . . . . . . . . Fabricators 2 | . . . . . . . 1 . . . . 1 . . . . . . . . . . . . Liberate 2 | . . . . . . . 1 . . . . 1 . . . . . . . . . . . . Repair Stations . | . . . . . . . . . . . . . . . . . . . . . . . . . Recycling Units 5 | . 2 . . . . 3 . . . . . . . . . . . . . . . . . . Tunnel 5 | . 2 . . . . 3 . . . . . . . . . . . . . . . . . . Scanalyzers . | . . . . . . . . . . . . . . . . . . . . . . . . . Garrison Access . | . . . . . . . . . . . . . . . . . . . . . . . . . Data Cores Recovered 6 | . . . . 1 1 . . . . . . . . . . . . . . . . 3 . 1 Used 1 | . . . . . . . . . . . . . . . . . . . . . . 1 . . Hacking Detections 110 | . 9 . 17 6 10 5 12 6 . . 6 5 . 4 . . . 5 6 3 7 9 . . Full Trace Events 4 | . . . . . . . 1 . . . . . . . . . . . . 2 . 1 . . Feedback Events . | . . . . . . . . . . . . . . . . . . . . . . . . . Feedback Blocked . | . . . . . . . . . . . . . . . . . . . . . . . . . Robot Schematics Acquired . | . . . . . . . . . . . . . . . . . . . . . . . . . Robots Built . | . . . . . . . . . . . . . . . . . . . . . . . . . Authchips . | . . . . . . . . . . . . . . . . . . . . . . . . . Time . | . . . . . . . . . . . . . . . . . . . . . . . . . Total Robot Build Rating . | . . . . . . . . . . . . . . . . . . . . . . . . . Part Schematics Acquired 3 | . . . 2 . 1 . . . . . . . . . . . . . . . . . . . Parts Built . | . . . . . . . . . . . . . . . . . . . . . . . . . Authchips . | . . . . . . . . . . . . . . . . . . . . . . . . . Time . | . . . . . . . . . . . . . . . . . . . . . . . . . Total Part Build Rating . | . . . . . . . . . . . . . . . . . . . . . . . . . Part Studies Acquired 3 | . . . 2 1 . . . . . . . . . . . . . . . . . . . . Parts Repaired 5 | . . . 3 . 2 . . . . . . . . . . . . . . . . . . . Time 180 | . . . 120 . 60 . . . . . . . . . . . . . . . . . . . Parts Recycled . | . . . . . . . . . . . . . . . . . . . . . . . . . Recycled Matter . | . . . . . . . . . . . . . . . . . . . . . . . . . Retrieved Matter . | . . . . . . . . . . . . . . . . . . . . . . . . . Retrieved Components 67 | . 14 . 9 . . 26 13 . . . . 3 . 2 . . . . . . . . . . Parts Scanalyzed 2 | . . . 1 . . . . . . . . . . . . . . 1 . . . . . . Part Schematics Acquired 1 | . . . 1 . . . . . . . . . . . . . . . . . . . . . Parts Damaged . | . . . . . . . . . . . . . . . . . . . . . . . . . Bothacking | -11 -10 -10 -8 -7 -7 -7 -5 -5 -5 -5 -5 -4 -4 -4 -4 -4 -3 -3 -3 -2 -2 -2 -1 -1 ------------ Run | Yrd Mat Sub Mat Fac Sto Rec Fac Ext Cet Arc Hub Fac Was Fac Upp War Pro Res Arm Res Tes Frg Acc Com Used RIF Installer . | . . . . . . . . . . . . . . . . . . . . . . . . . Robots Hacked . | . . . . . . . . . . . . . . . . . . . . . . . . . Non-combat . | . . . . . . . . . . . . . . . . . . . . . . . . . Combat . | . . . . . . . . . . . . . . . . . . . . . . . . . Robot Hacks Applied . | . . . . . . . . . . . . . . . . . . . . . . . . . Relay Couplers Released 10 | . . . . . . . . . . . 1 . . 3 . . . . . 3 . 3 . . Machine Destruction 7 | . . . . . . . . . . . 1 . . 3 . . . . . 3 . . . . Programmers 3 | . . . . . . . . . . . . . . . . . . . . . . 3 . . Fabnet Peak Effective % . | . . . . . . . . . . . . . . . . . . . . . . . . . Robots Rewired 19 | . . . . . . 8 . 6 . . . . . . . 5 . . . . . . . . Allies Hacked 4 | . . . . . . 1 3 . . . . . . . . . . . . . . . . . Hacks Repelled . | . . . . . . . . . . . . . . . . . . . . . . . . . Allies | -11 -10 -10 -8 -7 -7 -7 -5 -5 -5 -5 -5 -4 -4 -4 -4 -4 -3 -3 -3 -2 -2 -2 -1 -1 -------- Run | Yrd Mat Sub Mat Fac Sto Rec Fac Ext Cet Arc Hub Fac Was Fac Upp War Pro Res Arm Res Tes Frg Acc Com Total Allies 42 | . . . . . . 8 4 15 5 . 1 4 . . . 5 . . . . . . . . Largest Group 14 | . . . . . . 8 7 14 10 10 3 4 . . . 5 . . . . . . . . Highest-Rated Group 733 | . . . . . . 180 164 519 733 733 218 151 . . . 260 . . . . . . . . Highest-Rated Ally 159 | . . . . . . 32 54 159 151 142 96 47 . . . 56 . . . . . . . . Total Orders 8 | . . . . . . . . . . . . . . . . 8 . . . . . . . . STAY 5 | . . . . . . . . . . . . . . . . 5 . . . . . . . . FOLLOW 2 | . . . . . . . . . . . . . . . . 2 . . . . . . . . AID 1 | . . . . . . . . . . . . . . . . 1 . . . . . . . . Ally Attacks 309 | . . . . . . 8 60 109 40 . 44 10 . . . 27 . . . . . . . 11 Total Damage 8477 | . . . . . . 145 1442 2087 854 . 1620 316 . . . 1461 . . . . . . . 552 Kills 41 | . . . . . . 3 11 8 7 . 7 1 . . . 4 . . . . . . . . Allies Corrupted . | . . . . . . . . . . . . . . . . . . . . . . . . . Allies Melted . | . . . . . . . . . . . . . . . . . . . . . . . . . Intel | -11 -10 -10 -8 -7 -7 -7 -5 -5 -5 -5 -5 -4 -4 -4 -4 -4 -3 -3 -3 -2 -2 -2 -1 -1 ------- Run | Yrd Mat Sub Mat Fac Sto Rec Fac Ext Cet Arc Hub Fac Was Fac Upp War Pro Res Arm Res Tes Frg Acc Com Active Infowar (turns) 19427 | 7 1630 2289 2023 829 1676 101 1748 . . . 90 531 64 442 373 542 693 1444 900 1235 758 1331 449 272 Optics 6389 | . . . . . . . . . . . . . . . . . . 1444 900 1235 758 1331 449 272 Sensors 7416 | . . . . . . . 1744 . . . 90 31 64 284 373 542 693 1257 522 943 601 272 . . A.S.S. 472 | . . . . . . . . . . . . . . . . . . . . . . . 448 24 Terrain 911 | . . . . . . . 156 . . . . . . . . . . 1 . 754 . . . . Seismic 9308 | 7 1630 2289 2023 829 1676 101 . . . . . 531 64 158 . . . . . . . . . . Cloaking 2 | . . . . . . . . . . . . . . . . . . . . . . 2 . . Jamming 310 | . . . . . . . . . . . . . . . . . . 295 . . 1 14 . . ECM 2 | . . . . . . . . . . . . . . . . . . . . . . 2 . . Robot Analysis Total 5 | . 2 . . . . . . . . . . 1 . . . . . . 1 . . 1 . . Derelict Logs Recovered . | . . . . . . . . . . . . . . . . . . . . . . . . . Drone Launches 6 | . . . . . . . . . . . . . . . . . . . . . . . . 6 Drone Recoveries . | . . . . . . . . . . . . . . . . . . . . . . . . . Exploration | -11 -10 -10 -8 -7 -7 -7 -5 -5 -5 -5 -5 -4 -4 -4 -4 -4 -3 -3 -3 -2 -2 -2 -1 -1 ------------- Run | Yrd Mat Sub Mat Fac Sto Rec Fac Ext Cet Arc Hub Fac Was Fac Upp War Pro Res Arm Res Tes Frg Acc Com Turns Passed 25797 | 131 1700 2354 2271 868 1756 3228 2156 862 387 44 214 640 64 460 438 978 857 1444 900 1235 758 1331 449 272 Spaces Moved 24381 | 47 862 1050 1171 539 946 1486 2322 788 199 40 394 802 117 591 729 1114 586 1549 1270 2396 1635 2372 864 512 Core 2 | 2 . . . . . . . . . . . . . . . . . . . . . . . . Treads 4044 | 45 862 1050 98 . . 645 254 . . . . 118 117 591 264 . . . . . . . . . Legs 9890 | . . . . . . 160 . . . . . 66 . . 465 782 524 953 60 2029 1635 2372 844 . Wheels 2850 | . . . 1073 539 946 292 . . . . . . . . . . . . . . . . . . Hover 1606 | . . . . . . 389 728 . . . . 95 . . . 332 62 . . . . . . . Flight 5989 | . . . . . . . 1340 788 199 40 394 523 . . . . . 596 1210 367 . . 20 512 Fastest Speed 25 | 50 160 160 115 105 105 75 42 42 31 31 31 31 36 36 36 49 55 30 30 30 30 30 25 25 Average Speed 67 | 155 160 160 132 106 105 118 66 49 49 33 35 51 36 50 48 49 129 71 40 30 30 30 29 25 Slowest Speed 240 | 160 160 240 160 115 105 145 132 58 58 47 47 99 36 99 99 55 139 139 78 30 30 30 30 25 Overloaded Moves 1112 | . . . . . . . 103 204 35 35 284 451 . . . . . . . . . . . . Propulsion Burnouts . | . . . . . . . . . . . . . . . . . . . . . . . . . Robots Hopped 27 | . . . . . . . 8 5 . . 7 2 . . . . . . 2 3 . . . . Potential Cave-ins 25 | . . . . . . . . . . . . . . . . 4 . 5 2 . . 13 1 . Cave-ins Triggered 1 | . . . . . . . 1 . . . . . . . . . . . . . . . . . Exploration Rate (%) 62 | 4 98 64 94 16 90 99 59 86 67 63 53 29 83 18 70 92 64 48 84 73 96 63 30 21 Regions Visited 24 Branch Regions 14 Pre-discovered Areas 6 | . 2 . . . . 3 . . . . . . . . . 1 . . . . . . . . Known Exits Taken 14 | . . . 1 1 . . 1 . . . 1 . . 1 1 1 1 1 1 1 1 1 1 . Unknown Exits Taken 8 | 1 1 1 . . 1 1 . 1 1 1 . . . . . . . . . . . . . . Scrap Searched 8 | . . 4 . . . . . . . . . . . . 1 . 3 . . . . . . . Spaces Dug 203 | . 2 11 40 14 30 1 16 3 . . 8 10 . 8 . 1 1 14 3 7 10 21 3 . Terrain Destroyed 1314 | . 55 16 103 40 87 22 29 60 6 . 333 98 . 25 19 8 8 45 50 43 105 115 29 18 Melee 41 | . . 11 22 1 . . 7 . . . . . . . . . . . . . . . . . Projectile 657 | . . 1 . 35 87 22 22 22 6 . 22 37 . 25 17 8 8 45 44 43 51 115 29 18 AOE 616 | . 55 4 81 4 . . . 38 . . 311 61 . . 2 . . . 6 . 54 . . . Terrain Rammed . | . . . . . . . . . . . . . . . . . . . . . . . . . Walls Destroyed . | . . . . . . . . . . . . . . . . . . . . . . . . . Machines Disabled . | . . . . . . . . . . . . . . . . . . . . . . . . . Actions | -11 -10 -10 -8 -7 -7 -7 -5 -5 -5 -5 -5 -4 -4 -4 -4 -4 -3 -3 -3 -2 -2 -2 -1 -1 --------- Run | Yrd Mat Sub Mat Fac Sto Rec Fac Ext Cet Arc Hub Fac Was Fac Upp War Pro Res Arm Res Tes Frg Acc Com Total 31718 | 76 1065 1554 1736 770 1546 2793 2812 1213 463 70 429 971 138 713 790 1466 650 1819 1538 2787 1841 2883 979 616 Wait 4027 | . 95 351 333 101 405 1054 217 210 205 31 6 59 20 48 20 207 21 125 116 206 86 81 13 17 Move 24307 | 46 861 1049 1170 538 945 1485 2305 777 198 39 381 798 116 590 728 1113 585 1548 1266 2389 1634 2371 863 512 Hop 24 | . . . . . . . 8 5 . . 5 2 . . . . . . 1 3 . . . . Pick Up 318 | 7 14 15 36 19 12 10 50 16 12 . . 15 1 12 3 13 1 12 10 11 10 30 7 2 Fast Attach 103 | 6 2 . 6 3 4 4 5 1 2 . 2 4 . 2 . 3 . 12 1 9 2 32 2 1 Attach 85 | 1 5 3 6 5 5 7 9 5 2 . 1 . . 1 1 . . 3 2 4 5 11 3 6 Detach 35 | . 1 . 2 . . 4 6 2 1 . 2 1 . 1 . . . 2 . 1 1 8 1 2 Swap 284 | . 12 29 51 13 9 4 10 5 1 . . 8 . 2 9 17 12 17 27 21 8 27 2 . Drop 366 | 1 5 15 39 17 11 23 47 18 14 . . 14 1 13 6 10 1 23 8 23 14 49 8 6 Fire 1832 | 15 65 70 66 73 153 111 132 56 28 . 32 66 . 43 23 70 30 74 105 119 80 274 77 70 Melee 74 | . . 21 26 1 . 18 8 . . . . . . . . . . . . . . . . . Ram 3 | . . . 1 . 2 . . . . . . . . . . . . . . . . . . . Kick 6 | . . . . . . . . . . . . . . . . . . 1 . 1 1 . 3 . Crush 10 | . 5 . . . . . . . . . . 4 . 1 . . . . . . . . . . Escape Stasis 46 | . . . . . . . 15 27 . . . . . . . . . 2 2 . . . . . Rewire 197 | . . . . . . 73 . 91 . . . . . . . 33 . . . . . . . . Trap 1 | . . 1 . . . . . . . . . . . . . . . . . . . . . . Miscellaneous . | . . . . . . . . . . . . . . . . . . . . . . . . . Route ------- -11/Scrapyard -10/Materials (discovered 5 exits: [*Mat x3] / [*Min] / *Sub) -10/Subcaves -8/Materials (discovered 3 exits: *Fac x3) -7/Factory (discovered 4 exits: [*Fac] / *Sto / Low x2) -7/Storage (discovered 2 exits: [*Fac] / *Rec) -7/Recycling -5/Factory (discovered 6 exits: *Fac x2 / *Upp x2 / *Ext x2) -5/Extension (discovered 2 exits: *Fac / *Cet) -5/Cetus (discovered 2 exits: *Fac / [*Arc]) -5/Archives -5/Hub_04(d) (discovered 2 exits: *Fac x2) -4/Factory (discovered 6 exits: Res x4 / *Upp x2) -4/Waste -4/Factory (discovered 2 exits: *Upp x2) -4/Upper Caves -4/Warlord -3/Proximity Caves -3/Research (discovered 2 exits: *Res / *Arm) -3/Armory (discovered 2 exits: *Res x2) -2/Research (discovered 2 exits: *Acc / *Tes) -2/Testing (discovered 3 exits: *Acc / [*Sec] / *Frg) -2/Protoforge -1/Access (discovered 2 exits: *Sur / *Com) -1/Command (discovered 2 exits: Sur x2) 0b10 Command History --------- Turn | Location | Event 50 | -11/Scrapyard | Discovered new exit (range 16) 132 | -11/Scrapyard | Entered Materials 312 | -10/Materials | Build established: Mutant 424 | -10/Materials | Discovered new exit (range 6) 479 | -10/Materials | Discovered new exit (range 13) 617 | -10/Materials | Discovered new exit (range 9) 882 | -10/Materials | Discovered new exit (range 9) 1090 | -10/Materials | Central database locked down 1278 | -10/Materials | Discovered new exit (range 7) 1832 | -10/Materials | Entered Subcaves 1833 | -10/Subcaves | Approached by a straggling Scientist 1922 | -10/Subcaves | Core integrity fell below 50% 2193 | -10/Subcaves | Shifting Twisted Machinery released Battle Rifle 2236 | -10/Subcaves | Shifting Twisted Machinery released Riot Gun 2249 | -10/Subcaves | Shifting Twisted Machinery released Sub. Shrapnel Launcher 2260 | -10/Subcaves | Shifting Twisted Machinery released Mak. Light Armor Plating 2911 | -10/Subcaves | Visited 4L-MR0's lab 3265 | -10/Subcaves | Found Powered Cannon 3453 | -10/Subcaves | A swath of the cavern ceiling suddenly collapsed 3572 | -10/Subcaves | Core integrity fell below 20% 4158 | -10/Subcaves | Discovered new exit (range 8) 4186 | -10/Subcaves | Entered Materials 4186 | -8/Materials | Evolved 4 slots: Power x1, Propulsion x1, Utility x2 5001 | -8/Materials | Learned Factory emergency access door positions 5029 | -8/Materials | Identified exit to Factory 5049 | -8/Materials | Learned 4 Lower Caves zone layouts 5057 | -8/Materials | Learned Factory emergency access door positions 5069 | -8/Materials | Learned location of 2 exits from Lower Caves 5118 | -8/Materials | Learned location of 1 exit from Lower Caves 6117 | -8/Materials | Repaired Arm. Huge Wheel 6156 | -8/Materials | Repaired Nuclear Core+ 6405 | -8/Materials | Repaired Deuterium Engine 6457 | -8/Materials | Entered Factory 6457 | -7/Factory | Evolved 2 slots: Propulsion x1, Utility x1 6458 | -7/Factory | Identified exit to Storage 6458 | -7/Factory | Identified exit to Lower Caves 6577 | -7/Factory | Attached Powered Cannon, gained temporary slot: Power 7220 | -7/Factory | Discovered new exit (range 15) 7325 | -7/Factory | Entered Storage 7900 | -7/Storage | Repaired Adv. Heat Sink 8100 | -7/Storage | Discovered new exit (range 4) 8709 | -7/Storage | Repaired Arm. Huge Wheel+ 8773 | -7/Storage | Used back door to open Recycling access 8773 | -7/Storage | Discovered new exit (range 5) 9081 | -7/Storage | Entered Recycling 9306 | -7/Recycling | Entered Scraplab 9316 | -7/Recycling | Found Prototype Device 9316 | -7/Recycling | Identified Scrap Engine 10086 | -7/Recycling | Build established: Construct 10163 | -7/Recycling | Core integrity fell below 50% 10431 | -7/Recycling | Discovered new exit (range 10) 10447 | -7/Recycling | Build established: Mutant 11185 | -7/Recycling | Build established: Construct 11805 | -7/Recycling | Build established: Commander-Construct 12309 | -7/Recycling | Entered Factory 12309 | -5/Factory | Accompanied by 7 allies 12309 | -5/Factory | Evolved 4 slots: Propulsion x1, Utility x1, Weapon x2 12394 | -5/Factory | Discovered new exit (range 16) 12428 | -5/Factory | Identified exit to Factory 12639 | -5/Factory | P-70 Sage assimilated allied Guardian 4a 12719 | -5/Factory | Crushed by falling debris 12964 | -5/Factory | Lost 3 allies 13226 | -5/Factory | Build established: Construct 13283 | -5/Factory | Discovered exit to Factory (range 15) 13429 | -5/Factory | Identified exit to Upper Caves 13429 | -5/Factory | Identified exit to Extension 13634 | -5/Factory | P-70 Sage assimilated hostile G-50 Soldier 13669 | -5/Factory | Watched by a mysterious "MATRIX" hacker. 14000 | -5/Factory | Found Imp. Powered Armor 14465 | -5/Factory | Entered Extension 14486 | -5/Extension | Rescued a captive Derelict 14488 | -5/Extension | Rescued a captive Derelict 14516 | -5/Extension | Rescued a captive Derelict 14529 | -5/Extension | Rescued a captive Derelict 14534 | -5/Extension | Rescued a captive Derelict 14731 | -5/Extension | Rescued a captive Derelict 14733 | -5/Extension | Rescued a captive Derelict 14970 | -5/Extension | Spotted B-75 Beast 14987 | -5/Extension | Destroyed B-75 Beast 15000 | -5/Extension | Spotted B-75 Beast 15020 | -5/Extension | Allies destroyed B-75 Beast 15063 | -5/Extension | Rescued a captive Derelict 15172 | -5/Extension | Energy Cycler disabled 15175 | -5/Extension | Rescued A7 15305 | -5/Extension | Discovered exit to Factory (range 11) 15310 | -5/Extension | Discovered new exit (range 7) 15313 | -5/Extension | Disrupted transfer network 15327 | -5/Extension | Entered Cetus 15327 | -5/Cetus | Accompanied by 6 allies (A7) 15332 | -5/Cetus | Acquired a Cetus Manufacturing Module code from A7 15335 | -5/Cetus | Spotted Cetus Guard 15335 | -5/Cetus | Spotted Cetus Guard 15337 | -5/Cetus | Spotted Cetus Guard 15339 | -5/Cetus | Spotted Cetus Guard 15345 | -5/Cetus | Allies destroyed Cetus Guard 15347 | -5/Cetus | Allies destroyed Cetus Guard 15359 | -5/Cetus | Destroyed Cetus Guard 15361 | -5/Cetus | Allies destroyed Cetus Guard 15412 | -5/Cetus | Started Cetus Manufacturing Module 15420 | -5/Cetus | Escorted A7 to Cetus Mainframe 15437 | -5/Cetus | Manufactured an Enhanced Grunt 15438 | -5/Cetus | Discovered new exit (range 15) 15448 | -5/Cetus | Spotted Cetus Guard 15448 | -5/Cetus | Spotted Cetus Guard 15449 | -5/Cetus | Spotted Cetus Guard 15451 | -5/Cetus | Spotted Cetus Guard 15458 | -5/Cetus | Destroyed Cetus Guard 15462 | -5/Cetus | Manufactured an Enhanced Grunt 15469 | -5/Cetus | Allies destroyed Cetus Guard 15469 | -5/Cetus | Allies destroyed Cetus Guard 15471 | -5/Cetus | Destroyed Cetus Guard 15474 | -5/Cetus | Discovered exit to Factory (range 16) 15479 | -5/Cetus | Met Revision 17 15487 | -5/Cetus | Manufactured an Enhanced Grunt 15512 | -5/Cetus | Manufactured an Enhanced Grunt 15537 | -5/Cetus | Manufactured an Enhanced Grunt 15714 | -5/Cetus | Entered Archives 15714 | -5/Archives | Accompanied by 10 allies (A7) 15719 | -5/Archives | Received a hacking code to weaken MAIN.C 15719 | -5/Archives | Met Zhirov 15722 | -5/Archives | Discovered new exit (range 16) 15725 | -5/Archives | Reinforcements dispatched to Archives 15743 | -5/Archives | Build established: Commander-Construct 15758 | -5/Archives | Entered Hub_04(d) 15758 | -5/Hub_04(d) | Accompanied by 2 allies 15766 | -5/Hub_04(d) | Discovered exit to Factory (range 12) 15789 | -5/Hub_04(d) | Discovered exit to Factory (range 13) 15822 | -5/Hub_04(d) | Disrupted transfer network 15910 | -5/Hub_04(d) | Network Hub disabled 15922 | -5/Hub_04(d) | Network Hub disabled 15923 | -5/Hub_04(d) | System corruption reached 10% 15938 | -5/Hub_04(d) | Spotted Lightning 15939 | -5/Hub_04(d) | Network Hub disabled 15941 | -5/Hub_04(d) | Spotted Lightning 15946 | -5/Hub_04(d) | Spotted Lightning 15947 | -5/Hub_04(d) | Spotted Lightning 15948 | -5/Hub_04(d) | Spotted Lightning 15950 | -5/Hub_04(d) | Spotted Lightning 15951 | -5/Hub_04(d) | Spotted Lightning 15952 | -5/Hub_04(d) | Spotted Lightning 15972 | -5/Hub_04(d) | Entered Factory 15972 | -4/Factory | Evolved 2 slots: Power x1, Propulsion x1 16089 | -4/Factory | Build established: Construct 16216 | -4/Factory | Identified exit to Upper Caves 16216 | -4/Factory | Identified exit to Research 16472 | -4/Factory | First assault squad dispatched 16493 | -4/Factory | Destroyed 13 combat bots 16612 | -4/Factory | Sucked down chute 16612 | -4/Factory | Entered Waste 16616 | -4/Waste | Spotted C-40 Crusher 16617 | -4/Waste | Spotted C-40 Crusher 16627 | -4/Waste | EMP discharged 16649 | -4/Waste | Spotted C-40 Crusher 16656 | -4/Waste | Spotted C-40 Crusher 16662 | -4/Waste | Spotted C-40 Crusher 16669 | -4/Waste | Spotted C-40 Crusher 16673 | -4/Waste | Discovered new exit (range 10) 16675 | -4/Waste | Identified exit to Factory 16676 | -4/Waste | Entered Factory 16853 | -4/Factory | Garrison activated, responded to threat 17136 | -4/Factory | Entered Upper Caves 17378 | -4/Upper Caves | Attracted the attention of an 0b10 checkpoint 17463 | -4/Upper Caves | Spotted B-86 Titan 17466 | -4/Upper Caves | Destroyed B-86 Titan 17551 | -4/Upper Caves | A Derelict revealed a hidden shortcut to "reach the base" 17570 | -4/Upper Caves | Identified exit to Warlord 17574 | -4/Upper Caves | Entered Warlord 17591 | -4/Warlord | System corruption cleaned by Quarantine Array 17612 | -4/Warlord | Learned 4 Research zone layouts 17612 | -4/Warlord | Learned 4 Research zone layouts 17612 | -4/Warlord | Learned location of Command (-1) 17612 | -4/Warlord | Learned Research stockpile data 17612 | -4/Warlord | Learned Armory security intel 17612 | -4/Warlord | Learned Testing security intel 17612 | -4/Warlord | Learned Research scanalyzer intel 17612 | -4/Warlord | Learned Research garrison access intel 17902 | -4/Warlord | Found Prototype Processor 17902 | -4/Warlord | Identified Exp. Targeting Computer 17906 | -4/Warlord | Found Prototype Device 17906 | -4/Warlord | Identified Thermal Barrier 17909 | -4/Warlord | Found Prototype Hackware 17911 | -4/Warlord | Found Prototype Processor 17954 | -4/Warlord | Warlord's base attacked by MAIN.C 17960 | -4/Warlord | Found Prototype Energy Gun 17962 | -4/Warlord | Found Prototype Energy Gun 17964 | -4/Warlord | Found Prototype Energy Cannon 17966 | -4/Warlord | Found Prototype Energy Cannon 18005 | -4/Warlord | Build established: Commander-Construct 18008 | -4/Warlord | Met Warlord 18304 | -4/Warlord | Warlord forces counterattacked 18357 | -4/Warlord | Spotted Striker 18409 | -4/Warlord | Spotted Striker 18455 | -4/Warlord | Spotted Executioner 18479 | -4/Warlord | Spotted B-86 Titan 18485 | -4/Warlord | Spotted B-90 Cyclops 18521 | -4/Warlord | Lost 33 allies 18523 | -4/Warlord | Opened side exit 18548 | -4/Warlord | Discovered new exit (range 9) 18551 | -4/Warlord | Identified exit to Proximity Caves 18552 | -4/Warlord | Entered Proximity Caves 18777 | -3/Proximity Caves | Build established: Construct 19314 | -3/Proximity Caves | Discovered exit to Research (range 12) 19409 | -3/Proximity Caves | Entered Research 19409 | -3/Research | Evolved 2 slots: Utility x2 19409 | -3/Research | Identified Spectral Analyzer 19410 | -3/Research | Identified exit to Armory 19413 | -3/Research | Loaded intel: 5 scanalyzer locations 19414 | -3/Research | Loaded intel: 4 garrison access locations 19527 | -3/Research | Identified System Mapper 19534 | -3/Research | Discovered new exit (range 17) 19609 | -3/Research | Revision forces began assault on 0b10 19633 | -3/Research | Identified exit to Research 19666 | -3/Research | Met up with Revision 17++ 20050 | -3/Research | Found Prototype Hackware 20088 | -3/Research | Identified Exp. System Shield 20109 | -3/Research | Research terminal network offline 20307 | -3/Research | Spotted B-86 Titan 20312 | -3/Research | Destroyed B-86 Titan 20328 | -3/Research | Spotted Striker 20329 | -3/Research | Spotted Striker 20329 | -3/Research | Destroyed Striker 20334 | -3/Research | Destroyed Striker 20592 | -3/Research | Spotted Striker 20614 | -3/Research | Destroyed Striker 20676 | -3/Research | Found Prototype Processor 20676 | -3/Research | Identified Exp. Melee Analysis Suite 20686 | -3/Research | Found Quantum Capacitor 20853 | -3/Research | Spotted Striker 20853 | -3/Research | Entered Armory 20854 | -3/Armory | Met VL-GR5, who suggested a friendly competition 21001 | -3/Armory | Congratulated by VL-GR5 on winning the competition 21002 | -3/Armory | Found Prototype Processor 21002 | -3/Armory | Identified VL-GR5's Timing Chip 21034 | -3/Armory | Spotted B-86 Titan 21042 | -3/Armory | Destroyed 17 combat bots 21171 | -3/Armory | Spotted Armor Guard 21171 | -3/Armory | Spotted Armor Guard 21196 | -3/Armory | Breached Obliterator storage 21301 | -3/Armory | Discovered exit to Research (range 3) 21603 | -3/Armory | First assault squad dispatched 21625 | -3/Armory | Discovered exit to Research (range 11) 21676 | -3/Armory | VL-GR5 left a parting gift on exiting Armory 21716 | -3/Armory | Found Prototype Energy Cannon 21753 | -3/Armory | Entered Research 21753 | -2/Research | Warlord forces began assault on 0b10 21753 | -2/Research | Evolved 2 slots: Utility x2 21818 | -2/Research | Spotted B-90 Cyclops 21826 | -2/Research | Destroyed B-90 Cyclops 21862 | -2/Research | Found Prototype Processor 21862 | -2/Research | Identified Exp. Core Analyzer 21863 | -2/Research | Research machine network offline 21904 | -2/Research | Met up with Warlord 21942 | -2/Research | Spotted B-90 Cyclops 21945 | -2/Research | Destroyed B-90 Cyclops 21955 | -2/Research | Found Prototype Processor 21955 | -2/Research | Identified Exp. Target Analyzer 22114 | -2/Research | Spotted B-90 Cyclops 22125 | -2/Research | Destroyed B-90 Cyclops 22165 | -2/Research | Borebot progress halted 22299 | -2/Research | Met DD-05H 22369 | -2/Research | Discovered new exit (range 6) 22370 | -2/Research | Identified exit to Access 22415 | -2/Research | Discovered new exit (range 9) 22418 | -2/Research | Identified exit to Testing 22450 | -2/Research | Borebot progress halted 22459 | -2/Research | Spotted Striker 22651 | -2/Research | Borebot progress halted 22672 | -2/Research | Spotted Striker 22674 | -2/Research | Destroyed Striker 22681 | -2/Research | Spotted Executioner 22686 | -2/Research | Destroyed Executioner 22701 | -2/Research | Spotted Striker 22702 | -2/Research | Spotted Executioner 22703 | -2/Research | Spotted Striker 22717 | -2/Research | Destroyed Striker 22719 | -2/Research | Destroyed Executioner 22740 | -2/Research | Destroyed 10 combat bots 22864 | -2/Research | Spotted Striker 22877 | -2/Research | Spotted Executioner 22887 | -2/Research | Destroyed Executioner 22897 | -2/Research | Found Exp. Targeting Computer 22906 | -2/Research | Spotted Striker 22920 | -2/Research | P-80 Master assimilated allied U2-5WT(M) 22967 | -2/Research | Warlord invited to help at Command 22967 | -2/Research | Given Cave Seal Controls access code 22973 | -2/Research | Found Exp. Targeting Computer 22988 | -2/Research | Entered Testing 22991 | -2/Testing | Identified Vortex Rifle 23033 | -2/Testing | Spotted Striker 23033 | -2/Testing | Spotted Striker 23170 | -2/Testing | Found Thermal Barrier 23194 | -2/Testing | Identified Multinova Projection Cannon 23196 | -2/Testing | Identified Vortex Driver (x2) 23283 | -2/Testing | Discovered exit to Access (range 13) 23351 | -2/Testing | Found System Mapper 23488 | -2/Testing | First assault squad dispatched 23522 | -2/Testing | Found Prototype Energy Cannon 23698 | -2/Testing | Spotted Fortress 23712 | -2/Testing | Destroyed Fortress 23737 | -2/Testing | Discovered new exit (range 6) 23737 | -2/Testing | Discovered new exit (range 6) 23741 | -2/Testing | Identified exit to Protoforge 23746 | -2/Testing | Entered Protoforge 23802 | -2/Protoforge | Spotted Hotshot 23803 | -2/Protoforge | Spotted B-90 Cyclops 23808 | -2/Protoforge | Superfortress began startup sequence 23824 | -2/Protoforge | Destroyed B-90 Cyclops 23826 | -2/Protoforge | Spotted Hotshot 23831 | -2/Protoforge | Spotted Hotshot 23838 | -2/Protoforge | Spotted Hotshot 23875 | -2/Protoforge | Destroyed Hotshot 23883 | -2/Protoforge | Destroyed Hotshot 23887 | -2/Protoforge | Destroyed Hotshot 23899 | -2/Protoforge | Destroyed Hotshot 23912 | -2/Protoforge | Forge Plexus network access discovered 23925 | -2/Protoforge | Destroyed 14 combat bots 23950 | -2/Protoforge | Spotted Hotshot 23950 | -2/Protoforge | Spotted Hotshot 23950 | -2/Protoforge | Spotted Hotshot 23978 | -2/Protoforge | Spotted Overlord 23991 | -2/Protoforge | Spotted Decapitator 24033 | -2/Protoforge | Spotted AP7-3 24037 | -2/Protoforge | Spotted AP7-3 24048 | -2/Protoforge | Build established: Hacker-Construct 24129 | -2/Protoforge | Spotted V418-u 24129 | -2/Protoforge | Spotted V306-m 24133 | -2/Protoforge | Spotted Decapitator 24133 | -2/Protoforge | Spotted Decapitator 24136 | -2/Protoforge | Destroyed V306-m 24136 | -2/Protoforge | Destroyed V418-u 24157 | -2/Protoforge | Destroyed 8 combat bots 24161 | -2/Protoforge | Found Cep. Antigrav Storage Unit 24163 | -2/Protoforge | Found Cep. Matter Streamer 24170 | -2/Protoforge | Found Cep. Chromion Battery 24177 | -2/Protoforge | Found Cep. NT7 Matterbank 24181 | -2/Protoforge | Found Cep. NT7 Matterbank 24185 | -2/Protoforge | Found Cep. NT7 Matterbank 24214 | -2/Protoforge | Spotted V115-a 24214 | -2/Protoforge | Spotted V015-a 24214 | -2/Protoforge | Spotted V488-u 24216 | -2/Protoforge | Found Cep. Melee Reflex Suite 24218 | -2/Protoforge | Found Mni. Quantum Capacitor 24221 | -2/Protoforge | Found Cep. Recoil Nullifier 24223 | -2/Protoforge | Found Cep. Countertargeting System 24225 | -2/Protoforge | Spotted V545-c 24226 | -2/Protoforge | Found Exp. Kinecellerator 24237 | -2/Protoforge | Found Cep. Antimissile System 24240 | -2/Protoforge | Found Crosscalibrator 24246 | -2/Protoforge | Spotted Decapitator 24246 | -2/Protoforge | Spotted Decapitator 24246 | -2/Protoforge | Spotted Decapitator 24246 | -2/Protoforge | Spotted Decapitator 24310 | -2/Protoforge | Spotted V981-j 24317 | -2/Protoforge | Destroyed V981-j 24337 | -2/Protoforge | Spotted V604-p 24337 | -2/Protoforge | Spotted V039-c 24349 | -2/Protoforge | Destroyed V039-c 24350 | -2/Protoforge | Spotted V535-z 24355 | -2/Protoforge | Destroyed V604-p 24359 | -2/Protoforge | System corruption reached 10% 24364 | -2/Protoforge | Destroyed V535-z 24368 | -2/Protoforge | Found Cep. Projectile Intercept Suite 24383 | -2/Protoforge | Found Cep. NT7 Matterbank 24392 | -2/Protoforge | Spotted V513-g 24393 | -2/Protoforge | Found Cep. Core Shell 24396 | -2/Protoforge | Found Cep. Reaction Jets 24407 | -2/Protoforge | Found Cep. RG22 Armor 24411 | -2/Protoforge | Found Exp. Remote Shield 24440 | -2/Protoforge | Spotted Decapitator 24440 | -2/Protoforge | Spotted Decapitator 24440 | -2/Protoforge | Spotted Decapitator 24440 | -2/Protoforge | Spotted Decapitator 24441 | -2/Protoforge | Build established: Construct 24444 | -2/Protoforge | Destroyed Decapitator 24444 | -2/Protoforge | Destroyed Decapitator 24451 | -2/Protoforge | Destroyed Decapitator 24455 | -2/Protoforge | Destroyed Decapitator 24467 | -2/Protoforge | Spotted V577-v 24472 | -2/Protoforge | Destroyed V577-v 24478 | -2/Protoforge | Found Exp. Active Sensor Suite 24493 | -2/Protoforge | Destroyed 8 combat bots 24525 | -2/Protoforge | Spotted AP7-3 24525 | -2/Protoforge | Spotted AP7-3 24536 | -2/Protoforge | Destroyed AP7-3 24544 | -2/Protoforge | Destroyed AP7-3 24552 | -2/Protoforge | Found Prototype Device 24552 | -2/Protoforge | Identified Exp. ECM Suite 24563 | -2/Protoforge | Found Cep. Thermoelectric Network 24565 | -2/Protoforge | Found Faulty Cep. Thermoelectric Network 24567 | -2/Protoforge | Found Faulty Cep. Impact Drone Bay 24568 | -2/Protoforge | Found Cep. Cloak Mesh 24571 | -2/Protoforge | Found Cep. Impact Drone Bay 24573 | -2/Protoforge | Found Cep. Cloak Mesh 24625 | -2/Protoforge | Additional patrols dispatched to research labs 24633 | -2/Protoforge | Found Cep. Nanofilaments [Endoweave] 24633 | -2/Protoforge | Installed Cep. Nanofilaments [Endoweave], 5 resistances modified: KI +10%, TH +10%, EX -50%, S -20%, P +20% 24639 | -2/Protoforge | Found Transdimensional Reconstructor 24644 | -2/Protoforge | Found Cep. Navigation Harness 24708 | -2/Protoforge | Found Faulty Cep. Heavy Railcannon 24715 | -2/Protoforge | Found Faulty Cep. Plasma Driver 24719 | -2/Protoforge | Found Cep. Plasma Driver 24746 | -2/Protoforge | First assault squad dispatched 24750 | -2/Protoforge | Spotted Immortal 24752 | -2/Protoforge | Spotted Immortal 24753 | -2/Protoforge | Destroyed Immortal 24755 | -2/Protoforge | Spotted Immortal 24759 | -2/Protoforge | Destroyed Immortal 24778 | -2/Protoforge | Destroyed Immortal 24817 | -2/Protoforge | Destroyed V488-u 24822 | -2/Protoforge | Destroyed V115-a 24826 | -2/Protoforge | Destroyed V015-a 24830 | -2/Protoforge | Destroyed V545-c 24847 | -2/Protoforge | Found Prototype Device 24847 | -2/Protoforge | Identified Exp. Shock Absorption System 24849 | -2/Protoforge | Found Prototype Device 24849 | -2/Protoforge | Identified Exp. Shield Generator 24855 | -2/Protoforge | Found Cep. Weapon Articulator 24858 | -2/Protoforge | Found Exp. Kinecellerator 24861 | -2/Protoforge | Found Mni. Quantum Capacitor 24894 | -2/Protoforge | Spotted Immortal 24895 | -2/Protoforge | Spotted Immortal 24895 | -2/Protoforge | Spotted Immortal 24915 | -2/Protoforge | Destroyed Immortal 24921 | -2/Protoforge | Destroyed Immortal 24958 | -2/Protoforge | Destroyed Immortal 24959 | -2/Protoforge | System corruption reached 30% 24977 | -2/Protoforge | Spotted Executioner 24979 | -2/Protoforge | Destroyed 8 combat bots 24979 | -2/Protoforge | Spotted Executioner 24980 | -2/Protoforge | Destroyed Executioner 24982 | -2/Protoforge | Destroyed Executioner 24997 | -2/Protoforge | Spotted Decapitator 25004 | -2/Protoforge | Destroyed Decapitator 25012 | -2/Protoforge | Spotted Striker 25015 | -2/Protoforge | Spotted Decapitator 25030 | -2/Protoforge | Destroyed Decapitator 25069 | -2/Protoforge | Spotted Hotshot 25069 | -2/Protoforge | Spotted Hotshot 25069 | -2/Protoforge | Spotted Hotshot 25070 | -2/Protoforge | Spotted Hotshot 25074 | -2/Protoforge | Discovered exit to Access (range 10) 25077 | -2/Protoforge | Entered Access 25077 | -1/Access | Evolved 2 slots: Utility x2 25198 | -1/Access | High security lockdown imminent 25253 | -1/Access | Destroyed 13 combat bots 25257 | -1/Access | Spotted B-99 Colossus 25257 | -1/Access | Spotted B-99 Colossus 25278 | -1/Access | High security lockdown engaged 25279 | -1/Access | Destroyed B-99 Colossus 25285 | -1/Access | Destroyed B-99 Colossus 25302 | -1/Access | Discovered new exit (range 10) 25306 | -1/Access | Identified exit to Surface 25408 | -1/Access | Garrison activated, responded to threat 25521 | -1/Access | Discovered new exit (range 8) 25524 | -1/Access | Identified exit to Command 25526 | -1/Access | Entered Command 25606 | -1/Command | Spotted M Guard 25606 | -1/Command | Spotted M Guard 25608 | -1/Command | Spotted Combat Programmer 25608 | -1/Command | Spotted Combat Programmer 25618 | -1/Command | Destroyed Combat Programmer 25621 | -1/Command | Destroyed Combat Programmer 25622 | -1/Command | Destroyed M Guard 25635 | -1/Command | Destroyed M Guard 25635 | -1/Command | All MAIN.C guards destroyed 25641 | -1/Command | Found Prototype Launcher 25641 | -1/Command | Identified Ragnarok Missile Launcher 25660 | -1/Command | Lost 6 allies 25698 | -1/Command | Met MAIN.C 25722 | -1/Command | Destroyed MAIN.C Shell 25724 | -1/Command | MAIN.C activated Command garrisons 25781 | -1/Command | Destroyed MAIN.C 25788 | -1/Command | Discovered exit to Surface (range 38) 25788 | -1/Command | Discovered exit to Surface (range 75) 25788 | -1/Command | Extracted map data and part IDs from MAIN.C's data core 25798 | -1/Command | Interfaced with 0b10 Conduit 25798 | *** | Assimilated 0b10! Last Messages --------------- Renamed Hpw. Kinetic Hardcell Construct/C. 25770_ Knocked back. 25770_ MAIN.C knocked back. 25772_ Destroyed Prototype Hover Unit. 25772_ MAIN.C knocked back. 25773_ Graviton-Point Reactor destroyed. 25773_ Graviton-Point Reactor core remains intact and functional. 25773_ Exp. Kinecellerator destroyed. 25773_ Knocked back. 25775_ MAIN.C knocked back. 25781_ MAIN.C: "I hope you know you're still going to DIE HERE WITH ME!" 25781_ MAIN.C destroyed. 25788_ EXIT=FOUND: SURFACE 25788_ Acquired data core, extracted map data and part IDs. 25790_ System corrupted: Matter fused (-8). 25798_ Interfacing with system... [Achievement: MAIN.CPP] Map ----- +----------------------------------------------------+ | #??????#]]] ] =#????????????????????????#?#?#??? | | #??????#!!! =#????????????????????????#?#?#??? | | #??????#!!!**==#????????????????????????#?#?#??? | | #??????#########????????????????????????#?#?#??? | | ########????????????????????????????????#?#?#??? | | # ######################################### | | # ######################################### | | # ######################################### | | # ######################################### | | # ######################################### | | # ######################################### | | # ######################################### | | # ######################################### | | + ######################################### | | ### #####""""""" """" ############### | | # #####"" "" ############### | | # #####""""" "" % ;#;#;##"####"## | | + #####""""""""""" %! ; | | ####+#######" " """ !%] ; | | #### #####"" """""" % ; | | #####"" """""" % ######""""##### | | " " ##### " """""" ############### | | " ##### " "" ############### | | """ ##### " " ""############### | | """ #####""""""""" """""""############### | | "T #####"" @"""""""""############### | | """ " ##### """""""""""############### | | "" ##### " " " " ############### | | "" ##### " " " " ############### | | " " " """" " ############### | | """ " " """" ############### | | " " " " ############### | | ########## """""""""" " ############### | | ########## " """ " """"""""############### | | ########## """ " " " ############### | | ############################################## | | ############################################## | | "" ############################################## | | """############################################## | | T"############################################## | | """############################################## | | "" ############################################## | | ############################################## | | ############################################## | | ############################################## | | #?????????????????????????????????????#?#?#??? | | #?????????????????????????????????????#?#?#??? | | #+######??????????????????????????????????#?#?#??? | | #??????????????????????????????????#?#?#??? | | #??????????????????????????????????#?#?#??? | +----------------------------------------------------+ Best States ------------- Heat Dissipation 139 Coolant Potential 100 Energy Generation 100 Energy Capacity 6712 Matter Stores 300 Matter Capacity 300 Sight Range 24 Robot Scan Range 20 Terrain Scan Range 24 Terrain Scan Density 210 Jamming Range 16 Cloak Strength 6 Additional Mass Support 12 Base Temperature (-) 100 Armor Coverage 900 Resistance: KI 30 Resistance: TH 30 Resistance: P 20 Weapon Shielding 66 Point Defense Rating 480 Weapon Cycling 20 Evasion (%) 87 Targeting Accuracy 24 Launcher Accuracy 60 Recoil Reduction 5 Kinecelleration 66 Offensive Hacking 20 Defensive Hacking 10 Item Schematics ----------------- Cryofiber Web | -8/Materials | Scanalyzed Imp. Weapon Shielding | -8/Materials | Hacked Med. Reflective Plating | -7/Storage | Hacked Robot Schematics ------------------ None Fabricated ------------ Nothing Repaired ---------- Arm. Huge Wheel | 32% | -8/Materials Nuclear Core | 54% | -8/Materials Deuterium Engine | 42% | -8/Materials Adv. Heat Sink | 42% | -7/Storage Arm. Huge Wheel | 4% | -7/Storage Studied --------- Nuclear Core | -8/Materials | Hacked Rocket Launcher | -8/Materials | Hacked Arm. Huge Wheel | -7/Factory | Hacked Alien Tech Used ----------------- Concept Nanofilaments [Endoweave] Achievements -------------- Doshington Inventory(Loot) Kill Stealer MAIN.CPP Not Immortal After All Challenges ------------ None Game ------ Seed TransportStasisFlightbrick Manual? 0 Play Time 07:13:36 Cumulative 615.5 hours Start 2026.03.02 @ 18:34:39 End 2026.03.03 @ 19:49:25 Sessions 5 Manual Loads 0 Difficulty Rogue Special Mode None Game No. 346 Rogue 346 Adventurer 0 Explorer 0 Win Type 4 Total 23 Types 12/0/6/0/1/0/1/2/1/0 Lore% 90 Gallery% 85 Achievement% 73 Wizard Run 0 Options --------- Layout 1 ASCII 0 Keyboard 0 Movement Numpad Keybinds 0 Fullscreen 2 Font 24/Smallcaps Map View 50x40 Zoom Use 0% Tactical HUD 1 Map Filters NONE Filters NONE Steam 1 RUN: d3d8dfb5-a623-4ec4-bfe0-6d282f436977